Workbook

Sheet Introduction
B2: This model provides a tool to assess the likely total public cost of setting up and operating an IDZ.
B3: Cells or text shaded in blue indicate data and information which can be edited or changed by the user.
B4: The model is divided into two parts.
B6: 1. Setting up a new IDZ
B7: Key assumptions | C7: The model assumes that the IDZ is set-up (installation of bulk infrastructure) over a period of the first five years (Year 1 to Year 5). Tenants and investors then begin investing within the IDZ between Year 6 and Year 20 (a 15 year period).
B8: The following worksheets are used to determine the cost of setting up a new IDZ:
B9: Inputs worksheet | C9: This worksheet provides the user with the ability to set up the IDZ based on the number of tenants and average size of the tenants. Once the potential size of the IDZ has been determined, the user can then input the expected utilization of the IDZ by inputting the actual number of tenants secured within the IDZ. The user can determine how much cofunding is provided by the IDZ, the average level of incentives provided to the tenants and the tenants likely investment stream. Finally the user can enter an expected rental income rate for each type of tenant.
B10: Assumptions worksheet | C10: This worksheet provides a summary of the key assumptions used in the model. Baseline values are provided based on a review of existing IDZs, though users are able to alter these assumptions as more and better information becomes available.
B11: Results worksheet | C11: The results worksheet provides a summary analysis of the new IDZ based on the information from the Input and Assumptions worksheets. Public funding requirements are split into funding required for setting up the IDZ, cofunding of investors (CAPEX cofunding) and funding required to support the IDZ in periods where it experiences an operational shortfall. Results on the total value of private investment, export value and job creation are also provided.
B13: 2. Scenario analysis of existing IDZs
B14: Assumptions | C14: The scenario analysis tool provides an assessment of existing IDZs based on actual and forecast information. Years 1 - 5 is "actual data" based on information from the annual reports of the IDZs for the period 2008/9 to 2012/13. Years 6 - 20 provide a forecast based on a number of assumptions for the baseline scenario: -Rental income is R100/sqm. -No further bulk infrastructure is added to the IDZ.
B15: Scenario analysis worksheet | C15: Users are able to select between the IDZs and between two breakeven options: -Achieving operational breakeven through an increase in the average (R/sqm) rental income or -Achieving operational breakeven through a reduction in OPEX. The breakeven point is achieved by year 20. Users are also able to select the proportion of remaining lettable area that is leased to tenants by year 20. Additional assumptions for each IDZ for the years 6 - 20 are provided including: -The average level of cofunding (the % of IDZ funding as a proportion of the total investment in non-bulk CAPEX). -The average level of jobs created per each R1 million of private (tenant) investment.

Sheet Inputs
A2: IDZ costing
A6: Design and set up the IDZ
A9: What is the expected number of tenants in the IDZ?
D11: No. of tenants | G11: Average lettable size of tenant (sqm)
C12: Anchor | D12: 10 | F12: Anchor | G12: Baseline | H12: =IF(G12="Baseline",Assumptions!D13,"") -> 500000
C13: Medium | D13: 100 | F13: Medium | G13: Baseline | H13: =IF(G13="Baseline",Assumptions!D14,"") -> 25000
C14: Small | D14: 100 | F14: Small | G14: Baseline | H14: =IF(G14="Baseline",Assumptions!D15,"") -> 5000
A16: What is the estimated per sqm cost of bulk infrastructure?
G18: Baseline | H18: =IF(G18="Baseline",Assumptions!C22,"") -> 100
A21: Has the land been donated or must the land be purchased?
G23: Donated
A26: If the land has been purchased, what is the purchase price? (Rands)
G28: Low | H28: =IF(G28="High",Assumptions!C28,IF(G28="Low",Assumptions!C29,"")) -> 100
C32: Total initial IDZ investment (Rands) | G32: =Calculations!$J$6 -> 1333333333
C33: Total lettable area in IDZ (sqm) | G33: =Calculations!D6 -> 8000000
C34: Total gross size of IDZ (sqm) | G34: =Calculations!G6 -> 13333333.33
A37: IDZ occupancy and rental rates
A40: How many tenants have actually been secured by the IDZ?
D42: No. of tenants | G42: Average lettable size of tenant (sqm)
C43: Anchor | D43: 0 | F43: Anchor | G43: Baseline | H43: =IF(AND(G43="Baseline",G12="Baseline"),Assumptions!D13,IF(NOT(G12="Baseline"),G12,"")) -> 500000
C44: Medium | D44: 2 | F44: Medium | G44: Baseline | H44: =IF(AND(G44="Baseline",G13="Baseline"),Assumptions!D14,IF(NOT(G13="Baseline"),G13,"")) -> 25000
C45: Small | D45: 19 | F45: Small | G45: Baseline | H45: =IF(AND(G45="Baseline",G14="Baseline"),Assumptions!D15,IF(NOT(G14="Baseline"),G14,"")) -> 5000
D48: =IF(Calculations!E13>Calculations!D6,"The size / number of tenants is greater than the lettable size of the IDZ!!!!!","") -> 
A50: What is the AVERAGE level of investment by the tenant and cofunding by the IDZ? (Rands)
D52: Average investment by tenants | G52: Average investment (cofunding) by IDZ
C53: Anchor | D53: Baseline | E53: =IF(D53="Baseline",Assumptions!E13,"") -> 1000000000 | F53: Anchor | G53: Baseline | H53: =IF(G53="Baseline",Assumptions!F13,"") -> 250000000
C54: Medium | D54: Baseline | E54: =IF(D54="Baseline",Assumptions!E14,"") -> 100000000 | F54: Medium | G54: Baseline | H54: =IF(G54="Baseline",Assumptions!F14,"") -> 50000000
C55: Small | D55: Baseline | E55: =IF(D55="Baseline",Assumptions!E15,"") -> 25000000 | F55: Small | G55: Baseline | H55: =IF(G55="Baseline",Assumptions!F15,"") -> 25000000
A59: What is the AVERAGE Annual Rand value of incentives received by each tenant?
D61: Average annual incentive per tenant
C62: Anchor | D62: 0
C63: Medium | D63: 0
C64: Small | D64: 0
A69: What is the investment stream for the tenants?
G71: Even
A74: What is the expected AVERAGE rental income (R / sqm) for tenants?
F76: Anchor | G76: Baseline | H76: =IF(G76="Baseline",Assumptions!G13,"") -> 100
F77: Medium | G77: Baseline | H77: =IF(G77="Baseline",Assumptions!G14,"") -> 100
F78: Small | G78: Baseline | H78: =IF(G78="Baseline",Assumptions!G15,"") -> 100

Sheet Assumptions
A2: Model Assumptions
B6: The model assumes that the IDZ is set-up (installation of bulk infrastructure) over a period of the first five years (Year 1 to Year 5)
B7: Tenants and investors then begin investing within the IDZ between Year 6 and Year 20 (a 15 year period)
B11: Baseline tenants
B12: Tenant data | C12: Average jobs created per R million private investment | D12: Average size (sqm) | E12: Tenant Investment | F12: IDZ investment | G12: Rental income (per sqm) | H12: Annual exports (Rands)
B13: Anchor | C13: 3 | D13: 500000 | E13: 1000000000 | F13: =E13*0.25 -> 250000000 | G13: 100 | H13: 10000000
B14: Medium | C14: 3 | D14: 25000 | E14: 100000000 | F14: =E14*0.5 -> 50000000 | G14: 100 | H14: 2000000
B15: Small | C15: 3 | D15: 5000 | E15: 25000000 | F15: =E15*1 -> 25000000 | G15: 100 | H15: 200000
B18: Setting up the IDZ (baseline)
B19: lettable land / Total (gross) IDZ size | C19: 0.6
B21: Infrastructure (set up cost) per sqm
B22: Total cost | C22: =SUM(C23:C25) -> 100
B23: Roads | C23: 20
B24: Sewerage and pipelines | C24: 30
B25: Electricity | C25: 50
B27: Land cost per sqm
B28: High | C28: 200
B29: Low | C29: 100
B32: Operating costs
B34: Fixed staff costs for all IDZs | C34: Annual cost | D34: Number of staff
B35: Senior management | C35: 1800000 | D35: 5
B36: Other | C36: 500000 | D36: 10
B38: Fixed costs for all IDZs (Rands) | C38: Admin and corp. services | D38: Business Development | E38: Operations | F38: Investor servicing | G38: Total
B39: Staff costs | C39: =G39*0.3 -> 4200000 | D39: =G39*0.2 -> 2800000 | E39: =G39*0.5 -> 7000000 | F39: 0 | G39: =SUMPRODUCT(C35:C36,D35:D36) -> 14000000
B40: Travel and accommodation | D40: 500000 | E40: 500000 | F40: 0 | G40: =SUM(C40:F40) -> 1000000
B41: Marketing | C41: 500000 | D41: 250000 | E41: 0 | F41: 0 | G41: 750000
B42: Property rates | C42: 500000 | E42: 500000 | F42: 0 | G42: 1000000
B43: Professional fees | C43: 500000 | D43: 1000000 | E43: 1000000 | F43: 0 | G43: 2500000
B44: Other operating expenses | C44: 1000000 | E44: 1000000 | F44: 0 | G44: =SUM(C44:F44) -> 2000000
B45: Total | C45: =SUM(C39:C44) -> 6700000 | D45: 4550000 | E45: 10000000 | F45: 0 | G45: =SUM(G39:G44) -> 21250000
B48: Variable costs based on gross size of IDZ (R/sqm) | C48: Admin and corp. services | D48: Business Development | E48: Operations | F48: Investor servicing | G48: Total
B49: Staff costs | C49: 0.1 | D49: 0.1 | E49: 1 | F49: 0 | G49: =SUM(C49:F49) -> 1.2
B50: Travel and accommodation | D50: 0.2 | E50: 0.02 | F50: 0 | G50: =SUM(C50:F50) -> 0.22
B51: Marketing | C51: 0.1 | D51: 0.2 | E51: 0.05 | F51: 0 | G51: 0.35
B52: Property rates | C52: 0.02 | E52: 0.05 | F52: 0 | G52: 0.07
B53: Professional fees | C53: 0.1 | D53: 0.3 | E53: 0.5 | F53: 0 | G53: 0.9
B54: Other operating expenses | C54: 0.8 | D54: 0.1 | E54: 2 | F54: 0 | G54: 2.9
B55: Total | C55: =SUM(C49:C54) -> 1.12 | D55: =SUM(D49:D54) -> 0.9 | E55: =SUM(E49:E54) -> 3.62 | F55: =SUM(F49:F54) -> 0 | G55: 5.64
B58: Variable costs based on tenants (R/sqm) | C58: Admin and corp. services | D58: Business Development | E58: Operations | F58: Investor servicing | G58: Total
B59: Staff costs | C59: 1 | D59: 1 | E59: 1 | F59: 4 | G59: =SUM(C59:F59) -> 7
B60: Travel and accommodation | E60: 0.5 | F60: 1 | G60: 1.5
B61: Marketing | C61: 0.03 | D61: 0.5 | E61: 1 | F61: 0.5 | G61: 2.03
B62: Property rates | C62: 0.1 | E62: 0.5 | F62: 0.6 | G62: 1.2
B63: Professional fees | C63: 0.1 | E63: 1 | F63: 0.5 | G63: 1.6
B64: Other operating expenses | C64: 1.5 | D64: 1 | E64: 0.1 | F64: 4 | G64: 6.6
B65: Total | C65: =SUM(C59:C64) -> 2.73 | D65: =SUM(D59:D64) -> 2.5 | E65: =SUM(E59:E64) -> 4.1 | F65: =SUM(F59:F64) -> 10.6 | G65: =SUM(G59:G64) -> 19.93

Sheet Calculations (hidden)
B2: Tenant data | C2: Average tenant size (sqm) | D2: Total letable area (sqm) | F2: Gross IDZ size (sqm) | G2: Total size (sqm) | H2: Bulk cost | I2: Land cost | J2: Total set up cost
B3: Anchor | C3: =IF(Inputs!G12="Baseline",Assumptions!D13,Inputs!G12) -> 500000 | D3: =C3*Inputs!D12 -> 5000000 | F3: Anchor | G3: =Calculations!C3*Inputs!D12/Assumptions!$C$19 -> 8333333.333 | H3: =IF(Inputs!$G$18="Baseline",Assumptions!$C$22*Calculations!G3,Calculations!G3*Inputs!$G$18) -> 833333333.3 | I3: =IF(Inputs!$G$28="High",Assumptions!$C$28*Calculations!G3,IF(Inputs!$G$28="Low",Assumptions!$C$29*Calculations!G3,0)) -> 833333333.3 | J3: =H3+I3 -> 1666666667
B4: Medium | C4: =IF(Inputs!G13="Baseline",Assumptions!D14,Inputs!G13) -> 25000 | D4: =C4*Inputs!D13 -> 2500000 | F4: Medium | G4: =Calculations!C4*Inputs!D13/Assumptions!$C$19 -> 4166666.667 | H4: =IF(Inputs!$G$18="Baseline",Assumptions!$C$22*Calculations!G4,Calculations!G4*Inputs!$G$18) -> 416666666.7 | I4: =IF(Inputs!$G$28="High",Assumptions!$C$28*Calculations!G4,IF(Inputs!$G$28="Low",Assumptions!$C$29*Calculations!G4,0)) -> 416666666.7 | J4: =H4+I4 -> 833333333.3
B5: Small | C5: =IF(Inputs!G14="Baseline",Assumptions!D15,Inputs!G14) -> 5000 | D5: =C5*Inputs!D14 -> 500000 | F5: Small | G5: =Calculations!C5*Inputs!D14/Assumptions!$C$19 -> 833333.3333 | H5: =IF(Inputs!$G$18="Baseline",Assumptions!$C$22*Calculations!G5,Calculations!G5*Inputs!$G$18) -> 83333333.33 | I5: =IF(Inputs!$G$28="High",Assumptions!$C$28*Calculations!G5,IF(Inputs!$G$28="Low",Assumptions!$C$29*Calculations!G5,0)) -> 83333333.33 | J5: =H5+I5 -> 166666666.7
B6: Total | D6: =SUM(D3:D5) -> 8000000 | F6: Total | G6: =SUM(G3:G5) -> 13333333.33 | H6: =SUM(H3:H5) -> 1333333333 | I6: =IF(Inputs!$G$23="Donated",0,IF(AND(ISNUMBER(Inputs!$G$28),Inputs!$G$23="Purchased"),Inputs!$G$28,SUM(I3:I5))) -> 0 | J6: =I6+H6 -> 1333333333
B9: Actual number of tenants on IDZ | C9: Actual tenants | D9: Actual average size (sqm) | E9: Total area leased (sqm) | F9: Tenant investment | G9: IDZ investment | H9: Total investment | I9: Rental income | J9: Jobs created | K9: Total incentives provided annually | L9: Annual exports
B10: Anchor | C10: =Inputs!D43 -> 0 | D10: =IF(Inputs!G43="Baseline",Calculations!C3,Inputs!G43) -> 500000 | E10: =D10*C10 -> 0 | F10: =IF(Inputs!D53="Baseline",Assumptions!E13*C10,Inputs!D53*C10) -> 0 | G10: =IF(Inputs!G53="Baseline",Assumptions!F13*C10,Inputs!G53) -> 0 | H10: =F10+G10 -> 0 | I10: =IF(Inputs!G76="Baseline",Assumptions!G13*Calculations!E10,Inputs!G76*Calculations!E10) -> 0 | J10: =(F10/1000000)*Assumptions!C13 -> 0 | K10: =C10*Inputs!D62 -> 0 | L10: =C10*Assumptions!H13 -> 0
B11: Medium | C11: =Inputs!D44 -> 2 | D11: =IF(Inputs!G44="Baseline",Calculations!C4,Inputs!G44) -> 25000 | E11: =D11*C11 -> 50000 | F11: =IF(Inputs!D54="Baseline",Assumptions!E14*C11,Inputs!D54*C11) -> 200000000 | G11: =IF(Inputs!G54="Baseline",Assumptions!F14*C11,Inputs!G54) -> 100000000 | H11: =F11+G11 -> 300000000 | I11: =IF(Inputs!G77="Baseline",Assumptions!G14*Calculations!E11,Inputs!G77*Calculations!E11) -> 5000000 | J11: =(F11/1000000)*Assumptions!C14 -> 600 | K11: =C11*Inputs!D63 -> 0 | L11: =C11*Assumptions!H14 -> 4000000
B12: Small | C12: =Inputs!D45 -> 19 | D12: =IF(Inputs!G45="Baseline",Calculations!C5,Inputs!G45) -> 5000 | E12: 95000 | F12: =IF(Inputs!D55="Baseline",Assumptions!E15*C12,Inputs!D55*C12) -> 475000000 | G12: =IF(Inputs!G55="Baseline",Assumptions!F15*C12,Inputs!G55) -> 475000000 | H12: =F12+G12 -> 950000000 | I12: =IF(Inputs!G78="Baseline",Assumptions!G15*Calculations!E12,Inputs!G78*Calculations!E12) -> 9500000 | J12: =(F12/1000000)*Assumptions!C15 -> 1425 | K12: =C12*Inputs!D64 -> 0 | L12: =C12*Assumptions!H15 -> 3800000
B13: Total | E13: =SUM(E10:E12) -> 145000 | F13: 675000000 | G13: 575000000 | H13: 1250000000 | I13: 14500000 | J13: 2025 | K13: =SUM(K10:K12) -> 0 | L13: 7800000
B17: Tenant investment horizon | C17: 1 | D17: 2 | E17: 3 | F17: 4 | G17: 5 | H17: 6 | I17: 7 | J17: 8 | K17: 9 | L17: 10 | M17: 11 | N17: 12 | O17: 13 | P17: 14 | Q17: 15 | R17: 16 | S17: 17 | T17: 18 | U17: 19 | V17: 20 | W17: Total
B18: Early | H18: =1/10 -> 0.1 | I18: 0.1 | J18: 0.1 | K18: 0.1 | L18: 0.1 | M18: 0.1 | N18: 0.1 | O18: 0.1 | P18: 0.1 | Q18: 0.1 | W18: =SUM(C18:V18) -> 1
B19: Even | H19: =1/15 -> 0.06666666667 | I19: 0.06666666667 | J19: 0.06666666667 | K19: 0.06666666667 | L19: 0.06666666667 | M19: 0.06666666667 | N19: 0.06666666667 | O19: 0.06666666667 | P19: 0.06666666667 | Q19: 0.06666666667 | R19: 0.06666666667 | S19: 0.06666666667 | T19: 0.06666666667 | U19: 0.06666666667 | V19: 0.06666666667 | W19: =SUM(C19:V19) -> 1
B20: Late | M20: =1/10 -> 0.1 | N20: 0.1 | O20: 0.1 | P20: 0.1 | Q20: 0.1 | R20: 0.1 | S20: 0.1 | T20: 0.1 | U20: 0.1 | V20: 0.1 | W20: 1
B22: Investment | C22: 1 | D22: 2 | E22: 3 | F22: 4 | G22: 5 | H22: 6 | I22: 7 | J22: 8 | K22: 9 | L22: 10 | M22: 11 | N22: 12 | O22: 13 | P22: 14 | Q22: 15 | R22: 16 | S22: 17 | T22: 18 | U22: 19 | V22: 20 | W22: Total
B23: Set up cost | C23: =Calculations!J6*0.1 -> 133333333.3 | D23: =Calculations!J6*0.2 -> 266666666.7 | E23: =Calculations!J6*0.3 -> 400000000 | F23: =Calculations!J6*0.3 -> 400000000 | G23: =Calculations!J6*0.1 -> 133333333.3 | W23: =SUM(C23:V23) -> 1333333333
B24: IDZ investment | H24: =IF(Inputs!$G$71="Early",Calculations!$G$13*H18,IF(Inputs!$G$71="Even",Calculations!$G$13*H19,0)) -> 38333333.33 | I24: =IF(Inputs!$G$71="Early",Calculations!$G$13*I18,IF(Inputs!$G$71="Even",Calculations!$G$13*I19,0)) -> 38333333.33 | J24: =IF(Inputs!$G$71="Early",Calculations!$G$13*J18,IF(Inputs!$G$71="Even",Calculations!$G$13*J19,0)) -> 38333333.33 | K24: =IF(Inputs!$G$71="Early",Calculations!$G$13*K18,IF(Inputs!$G$71="Even",Calculations!$G$13*K19,0)) -> 38333333.33 | L24: =IF(Inputs!$G$71="Early",Calculations!$G$13*L18,IF(Inputs!$G$71="Even",Calculations!$G$13*L19,0)) -> 38333333.33 | M24: =IF(Inputs!$G$71="Early",Calculations!$G$13*M18,IF(Inputs!$G$71="Even",Calculations!$G$13*M19,Calculations!$G$13*M20)) -> 38333333.33 | N24: =IF(Inputs!$G$71="Early",Calculations!$G$13*N18,IF(Inputs!$G$71="Even",Calculations!$G$13*N19,Calculations!$G$13*N20)) -> 38333333.33 | O24: =IF(Inputs!$G$71="Early",Calculations!$G$13*O18,IF(Inputs!$G$71="Even",Calculations!$G$13*O19,Calculations!$G$13*O20)) -> 38333333.33 | P24: =IF(Inputs!$G$71="Early",Calculations!$G$13*P18,IF(Inputs!$G$71="Even",Calculations!$G$13*P19,Calculations!$G$13*P20)) -> 38333333.33 | Q24: =IF(Inputs!$G$71="Early",Calculations!$G$13*Q18,IF(Inputs!$G$71="Even",Calculations!$G$13*Q19,Calculations!$G$13*Q20)) -> 38333333.33 | R24: =IF(Inputs!$G$71="Early",0,IF(Inputs!$G$71="Even",Calculations!$G$13*R19,Calculations!$G$13*R20)) -> 38333333.33 | S24: =IF(Inputs!$G$71="Early",0,IF(Inputs!$G$71="Even",Calculations!$G$13*S19,Calculations!$G$13*S20)) -> 38333333.33 | T24: =IF(Inputs!$G$71="Early",0,IF(Inputs!$G$71="Even",Calculations!$G$13*T19,Calculations!$G$13*T20)) -> 38333333.33 | U24: =IF(Inputs!$G$71="Early",0,IF(Inputs!$G$71="Even",Calculations!$G$13*U19,Calculations!$G$13*U20)) -> 38333333.33 | V24: =IF(Inputs!$G$71="Early",0,IF(Inputs!$G$71="Even",Calculations!$G$13*V19,Calculations!$G$13*V20)) -> 38333333.33 | W24: =SUM(F24:V24) -> 575000000
B25: Tenant investment | H25: =IF(Inputs!$G$71="Early",Calculations!$F$13*H18,IF(Inputs!$G$71="Even",Calculations!$F$13*H19,0)) -> 45000000 | I25: =IF(Inputs!$G$71="Early",Calculations!$F$13*I18,IF(Inputs!$G$71="Even",Calculations!$F$13*I19,0)) -> 45000000 | J25: =IF(Inputs!$G$71="Early",Calculations!$F$13*J18,IF(Inputs!$G$71="Even",Calculations!$F$13*J19,0)) -> 45000000 | K25: =IF(Inputs!$G$71="Early",Calculations!$F$13*K18,IF(Inputs!$G$71="Even",Calculations!$F$13*K19,0)) -> 45000000 | L25: =IF(Inputs!$G$71="Early",Calculations!$F$13*L18,IF(Inputs!$G$71="Even",Calculations!$F$13*L19,0)) -> 45000000 | M25: =IF(Inputs!$G$71="Early",Calculations!$F$13*M18,IF(Inputs!$G$71="Even",Calculations!$F$13*M19,Calculations!$F$13*M20)) -> 45000000 | N25: =IF(Inputs!$G$71="Early",Calculations!$F$13*N18,IF(Inputs!$G$71="Even",Calculations!$F$13*N19,Calculations!$F$13*N20)) -> 45000000 | O25: =IF(Inputs!$G$71="Early",Calculations!$F$13*O18,IF(Inputs!$G$71="Even",Calculations!$F$13*O19,Calculations!$F$13*O20)) -> 45000000 | P25: =IF(Inputs!$G$71="Early",Calculations!$F$13*P18,IF(Inputs!$G$71="Even",Calculations!$F$13*P19,Calculations!$F$13*P20)) -> 45000000 | Q25: =IF(Inputs!$G$71="Early",Calculations!$F$13*Q18,IF(Inputs!$G$71="Even",Calculations!$F$13*Q19,Calculations!$F$13*Q20)) -> 45000000 | R25: =IF(Inputs!$G$71="Early",0,IF(Inputs!$G$71="Even",Calculations!$F$13*R19,Calculations!$F$13*R20)) -> 45000000 | S25: =IF(Inputs!$G$71="Early",0,IF(Inputs!$G$71="Even",Calculations!$F$13*S19,Calculations!$F$13*S20)) -> 45000000 | T25: =IF(Inputs!$G$71="Early",0,IF(Inputs!$G$71="Even",Calculations!$F$13*T19,Calculations!$F$13*T20)) -> 45000000 | U25: =IF(Inputs!$G$71="Early",0,IF(Inputs!$G$71="Even",Calculations!$F$13*U19,Calculations!$F$13*U20)) -> 45000000 | V25: =IF(Inputs!$G$71="Early",0,IF(Inputs!$G$71="Even",Calculations!$F$13*V19,Calculations!$F$13*V20)) -> 45000000 | W25: =SUM(F25:V25) -> 675000000
B27: Investment summary | C27: 1 | D27: 2 | E27: 3 | F27: 4 | G27: 5 | H27: 6 | I27: 7 | J27: 8 | K27: 9 | L27: 10 | M27: 11 | N27: 12 | O27: 13 | P27: 14 | Q27: 15 | R27: 16 | S27: 17 | T27: 18 | U27: 19 | V27: 20 | W27: Total
B28: Total IDZ CAPEX (Govt) | C28: =C23+C24 -> 133333333.3 | D28: 266666666.7 | E28: 400000000 | F28: 400000000 | G28: 133333333.3 | H28: 38333333.33 | I28: 38333333.33 | J28: 38333333.33 | K28: 38333333.33 | L28: 38333333.33 | M28: 38333333.33 | N28: 38333333.33 | O28: 38333333.33 | P28: 38333333.33 | Q28: 38333333.33 | R28: 38333333.33 | S28: 38333333.33 | T28: 38333333.33 | U28: 38333333.33 | V28: 38333333.33 | W28: =SUM(C28:V28) -> 1908333333
B29: Cumulative Govt CAPEX | C29: =C28 -> 133333333.3 | D29: =D28+C29 -> 400000000 | E29: 800000000 | F29: 1200000000 | G29: 1333333333 | H29: 1371666667 | I29: 1410000000 | J29: 1448333333 | K29: 1486666667 | L29: 1525000000 | M29: 1563333333 | N29: 1601666667 | O29: 1640000000 | P29: 1678333333 | Q29: 1716666667 | R29: 1755000000 | S29: 1793333333 | T29: 1831666667 | U29: 1870000000 | V29: 1908333333
B30: Cumulative tenant investment | C30: =C25 -> 0 | D30: =D25+C30 -> 0 | E30: 0 | F30: 0 | G30: 0 | H30: 45000000 | I30: 90000000 | J30: 135000000 | K30: 180000000 | L30: 225000000 | M30: 270000000 | N30: 315000000 | O30: 360000000 | P30: 405000000 | Q30: 450000000 | R30: 495000000 | S30: 540000000 | T30: 585000000 | U30: 630000000 | V30: 675000000
B32: Operating income | C32: 1 | D32: 2 | E32: 3 | F32: 4 | G32: 5 | H32: 6 | I32: 7 | J32: 8 | K32: 9 | L32: 10 | M32: 11 | N32: 12 | O32: 13 | P32: 14 | Q32: 15 | R32: 16 | S32: 17 | T32: 18 | U32: 19 | V32: 20 | W32: Total
B33: Rental income | C33: 0 | D33: 0 | E33: 0 | F33: 0 | G33: 0 | H33: =(H30/Calculations!$F$13)*Calculations!$I$13 -> 966666.6667 | I33: =(I30/Calculations!$F$13)*Calculations!$I$13 -> 1933333.333 | J33: =(J30/Calculations!$F$13)*Calculations!$I$13 -> 2900000 | K33: =(K30/Calculations!$F$13)*Calculations!$I$13 -> 3866666.667 | L33: =(L30/Calculations!$F$13)*Calculations!$I$13 -> 4833333.333 | M33: =(M30/Calculations!$F$13)*Calculations!$I$13 -> 5800000 | N33: =(N30/Calculations!$F$13)*Calculations!$I$13 -> 6766666.667 | O33: =(O30/Calculations!$F$13)*Calculations!$I$13 -> 7733333.333 | P33: =(P30/Calculations!$F$13)*Calculations!$I$13 -> 8700000 | Q33: =(Q30/Calculations!$F$13)*Calculations!$I$13 -> 9666666.667 | R33: =(R30/Calculations!$F$13)*Calculations!$I$13 -> 10633333.33 | S33: =(S30/Calculations!$F$13)*Calculations!$I$13 -> 11600000 | T33: =(T30/Calculations!$F$13)*Calculations!$I$13 -> 12566666.67 | U33: =(U30/Calculations!$F$13)*Calculations!$I$13 -> 13533333.33 | V33: =(V30/Calculations!$F$13)*Calculations!$I$13 -> 14500000 | W33: =SUM(C33:V33) -> 116000000
B35: Operating costs
B36: Fixed costs for all IDZs | C36: 1 | D36: 2 | E36: 3 | F36: 4 | G36: 5 | H36: 6 | I36: 7 | J36: 8 | K36: 9 | L36: 10 | M36: 11 | N36: 12 | O36: 13 | P36: 14 | Q36: 15 | R36: 16 | S36: 17 | T36: 18 | U36: 19 | V36: 20 | W36: Total
B37: Staff costs | C37: =Assumptions!$G39 -> 14000000 | D37: =Assumptions!$G39 -> 14000000 | E37: =Assumptions!$G39 -> 14000000 | F37: =Assumptions!$G39 -> 14000000 | G37: =Assumptions!$G39 -> 14000000 | H37: =Assumptions!$G39 -> 14000000 | I37: =Assumptions!$G39 -> 14000000 | J37: =Assumptions!$G39 -> 14000000 | K37: =Assumptions!$G39 -> 14000000 | L37: =Assumptions!$G39 -> 14000000 | M37: =Assumptions!$G39 -> 14000000 | N37: =Assumptions!$G39 -> 14000000 | O37: =Assumptions!$G39 -> 14000000 | P37: =Assumptions!$G39 -> 14000000 | Q37: =Assumptions!$G39 -> 14000000 | R37: =Assumptions!$G39 -> 14000000 | S37: =Assumptions!$G39 -> 14000000 | T37: =Assumptions!$G39 -> 14000000 | U37: =Assumptions!$G39 -> 14000000 | V37: =Assumptions!$G39 -> 14000000 | W37: =SUM(C37:V37) -> 280000000
B38: Travel and accommodation | C38: =Assumptions!$G40 -> 1000000 | D38: =Assumptions!$G40 -> 1000000 | E38: =Assumptions!$G40 -> 1000000 | F38: =Assumptions!$G40 -> 1000000 | G38: =Assumptions!$G40 -> 1000000 | H38: =Assumptions!$G40 -> 1000000 | I38: =Assumptions!$G40 -> 1000000 | J38: =Assumptions!$G40 -> 1000000 | K38: =Assumptions!$G40 -> 1000000 | L38: =Assumptions!$G40 -> 1000000 | M38: =Assumptions!$G40 -> 1000000 | N38: =Assumptions!$G40 -> 1000000 | O38: =Assumptions!$G40 -> 1000000 | P38: =Assumptions!$G40 -> 1000000 | Q38: =Assumptions!$G40 -> 1000000 | R38: =Assumptions!$G40 -> 1000000 | S38: =Assumptions!$G40 -> 1000000 | T38: =Assumptions!$G40 -> 1000000 | U38: =Assumptions!$G40 -> 1000000 | V38: =Assumptions!$G40 -> 1000000 | W38: =SUM(C38:V38) -> 20000000
B39: Marketing | C39: =Assumptions!$G41 -> 750000 | D39: =Assumptions!$G41 -> 750000 | E39: =Assumptions!$G41 -> 750000 | F39: =Assumptions!$G41 -> 750000 | G39: =Assumptions!$G41 -> 750000 | H39: =Assumptions!$G41 -> 750000 | I39: =Assumptions!$G41 -> 750000 | J39: =Assumptions!$G41 -> 750000 | K39: =Assumptions!$G41 -> 750000 | L39: =Assumptions!$G41 -> 750000 | M39: =Assumptions!$G41 -> 750000 | N39: =Assumptions!$G41 -> 750000 | O39: =Assumptions!$G41 -> 750000 | P39: =Assumptions!$G41 -> 750000 | Q39: =Assumptions!$G41 -> 750000 | R39: =Assumptions!$G41 -> 750000 | S39: =Assumptions!$G41 -> 750000 | T39: =Assumptions!$G41 -> 750000 | U39: =Assumptions!$G41 -> 750000 | V39: =Assumptions!$G41 -> 750000 | W39: 15000000
B40: Property rates | C40: =Assumptions!$G42 -> 1000000 | D40: =Assumptions!$G42 -> 1000000 | E40: =Assumptions!$G42 -> 1000000 | F40: =Assumptions!$G42 -> 1000000 | G40: =Assumptions!$G42 -> 1000000 | H40: =Assumptions!$G42 -> 1000000 | I40: =Assumptions!$G42 -> 1000000 | J40: =Assumptions!$G42 -> 1000000 | K40: =Assumptions!$G42 -> 1000000 | L40: =Assumptions!$G42 -> 1000000 | M40: =Assumptions!$G42 -> 1000000 | N40: =Assumptions!$G42 -> 1000000 | O40: =Assumptions!$G42 -> 1000000 | P40: =Assumptions!$G42 -> 1000000 | Q40: =Assumptions!$G42 -> 1000000 | R40: =Assumptions!$G42 -> 1000000 | S40: =Assumptions!$G42 -> 1000000 | T40: =Assumptions!$G42 -> 1000000 | U40: =Assumptions!$G42 -> 1000000 | V40: =Assumptions!$G42 -> 1000000 | W40: 20000000
B41: Professional fees | C41: =Assumptions!$G43 -> 2500000 | D41: =Assumptions!$G43 -> 2500000 | E41: =Assumptions!$G43 -> 2500000 | F41: =Assumptions!$G43 -> 2500000 | G41: =Assumptions!$G43 -> 2500000 | H41: =Assumptions!$G43 -> 2500000 | I41: =Assumptions!$G43 -> 2500000 | J41: =Assumptions!$G43 -> 2500000 | K41: =Assumptions!$G43 -> 2500000 | L41: =Assumptions!$G43 -> 2500000 | M41: =Assumptions!$G43 -> 2500000 | N41: =Assumptions!$G43 -> 2500000 | O41: =Assumptions!$G43 -> 2500000 | P41: =Assumptions!$G43 -> 2500000 | Q41: =Assumptions!$G43 -> 2500000 | R41: =Assumptions!$G43 -> 2500000 | S41: =Assumptions!$G43 -> 2500000 | T41: =Assumptions!$G43 -> 2500000 | U41: =Assumptions!$G43 -> 2500000 | V41: =Assumptions!$G43 -> 2500000 | W41: 50000000
B42: Other operating expenses | C42: =Assumptions!$G44 -> 2000000 | D42: =Assumptions!$G44 -> 2000000 | E42: =Assumptions!$G44 -> 2000000 | F42: =Assumptions!$G44 -> 2000000 | G42: =Assumptions!$G44 -> 2000000 | H42: =Assumptions!$G44 -> 2000000 | I42: =Assumptions!$G44 -> 2000000 | J42: =Assumptions!$G44 -> 2000000 | K42: =Assumptions!$G44 -> 2000000 | L42: =Assumptions!$G44 -> 2000000 | M42: =Assumptions!$G44 -> 2000000 | N42: =Assumptions!$G44 -> 2000000 | O42: =Assumptions!$G44 -> 2000000 | P42: =Assumptions!$G44 -> 2000000 | Q42: =Assumptions!$G44 -> 2000000 | R42: =Assumptions!$G44 -> 2000000 | S42: =Assumptions!$G44 -> 2000000 | T42: =Assumptions!$G44 -> 2000000 | U42: =Assumptions!$G44 -> 2000000 | V42: =Assumptions!$G44 -> 2000000 | W42: 40000000
B43: Total | C43: =SUM(C37:C42) -> 21250000 | D43: =SUM(D37:D42) -> 21250000 | E43: 21250000 | F43: 21250000 | G43: 21250000 | H43: 21250000 | I43: 21250000 | J43: 21250000 | K43: 21250000 | L43: 21250000 | M43: 21250000 | N43: 21250000 | O43: 21250000 | P43: 21250000 | Q43: 21250000 | R43: 21250000 | S43: 21250000 | T43: 21250000 | U43: 21250000 | V43: 21250000 | W43: 425000000
B45: Variable costs based on gross size of IDZ | C45: 1 | D45: 2 | E45: 3 | F45: 4 | G45: 5 | H45: 6 | I45: 7 | J45: 8 | K45: 9 | L45: 10 | M45: 11 | N45: 12 | O45: 13 | P45: 14 | Q45: 15 | R45: 16 | S45: 17 | T45: 18 | U45: 19 | V45: 20 | W45: Total
B46: Staff costs | C46: =Assumptions!$G49*Calculations!$G$6*(C$23/SUM(C$23:G$23)) -> 1600000 | D46: =Assumptions!$G49*Calculations!$G$6*(D$23/SUM(D$23:H$23)) -> 3555555.556 | E46: =Assumptions!$G49*Calculations!$G$6*(E$23/SUM(E$23:I$23)) -> 6857142.857 | F46: =Assumptions!$G49*Calculations!$G$6*(F$23/SUM(F$23:J$23)) -> 12000000 | G46: =Assumptions!$G49*Calculations!$G$6*(G$23/SUM(G$23:K$23)) -> 16000000 | H46: =Assumptions!$G49*Calculations!$G$6 -> 16000000 | I46: =Assumptions!$G49*Calculations!$G$6 -> 16000000 | J46: =Assumptions!$G49*Calculations!$G$6 -> 16000000 | K46: =Assumptions!$G49*Calculations!$G$6 -> 16000000 | L46: =Assumptions!$G49*Calculations!$G$6 -> 16000000 | M46: =Assumptions!$G49*Calculations!$G$6 -> 16000000 | N46: =Assumptions!$G49*Calculations!$G$6 -> 16000000 | O46: =Assumptions!$G49*Calculations!$G$6 -> 16000000 | P46: =Assumptions!$G49*Calculations!$G$6 -> 16000000 | Q46: =Assumptions!$G49*Calculations!$G$6 -> 16000000 | R46: =Assumptions!$G49*Calculations!$G$6 -> 16000000 | S46: =Assumptions!$G49*Calculations!$G$6 -> 16000000 | T46: =Assumptions!$G49*Calculations!$G$6 -> 16000000 | U46: =Assumptions!$G49*Calculations!$G$6 -> 16000000 | V46: =Assumptions!$G49*Calculations!$G$6 -> 16000000 | W46: =SUM(C46:V46) -> 280012698.4
B47: Travel and accommodation | C47: =Assumptions!$G50*Calculations!$G$6*(C$23/SUM(C$23:G$23)) -> 293333.3333 | D47: =Assumptions!$G50*Calculations!$G$6*(D$23/SUM(D$23:H$23)) -> 651851.8519 | E47: =Assumptions!$G50*Calculations!$G$6*(E$23/SUM(E$23:I$23)) -> 1257142.857 | F47: =Assumptions!$G50*Calculations!$G$6*(F$23/SUM(F$23:J$23)) -> 2200000 | G47: =Assumptions!$G50*Calculations!$G$6*(G$23/SUM(G$23:K$23)) -> 2933333.333 | H47: =Assumptions!$G50*Calculations!$G$6 -> 2933333.333 | I47: =Assumptions!$G50*Calculations!$G$6 -> 2933333.333 | J47: =Assumptions!$G50*Calculations!$G$6 -> 2933333.333 | K47: =Assumptions!$G50*Calculations!$G$6 -> 2933333.333 | L47: =Assumptions!$G50*Calculations!$G$6 -> 2933333.333 | M47: =Assumptions!$G50*Calculations!$G$6 -> 2933333.333 | N47: =Assumptions!$G50*Calculations!$G$6 -> 2933333.333 | O47: =Assumptions!$G50*Calculations!$G$6 -> 2933333.333 | P47: =Assumptions!$G50*Calculations!$G$6 -> 2933333.333 | Q47: =Assumptions!$G50*Calculations!$G$6 -> 2933333.333 | R47: =Assumptions!$G50*Calculations!$G$6 -> 2933333.333 | S47: =Assumptions!$G50*Calculations!$G$6 -> 2933333.333 | T47: =Assumptions!$G50*Calculations!$G$6 -> 2933333.333 | U47: =Assumptions!$G50*Calculations!$G$6 -> 2933333.333 | V47: =Assumptions!$G50*Calculations!$G$6 -> 2933333.333 | W47: 51335661.38
B48: Marketing | C48: =Assumptions!$G51*Calculations!$G$6*(C$23/SUM(C$23:G$23)) -> 466666.6667 | D48: =Assumptions!$G51*Calculations!$G$6*(D$23/SUM(D$23:H$23)) -> 1037037.037 | E48: =Assumptions!$G51*Calculations!$G$6*(E$23/SUM(E$23:I$23)) -> 2000000 | F48: =Assumptions!$G51*Calculations!$G$6*(F$23/SUM(F$23:J$23)) -> 3500000 | G48: =Assumptions!$G51*Calculations!$G$6*(G$23/SUM(G$23:K$23)) -> 4666666.667 | H48: =Assumptions!$G51*Calculations!$G$6 -> 4666666.667 | I48: =Assumptions!$G51*Calculations!$G$6 -> 4666666.667 | J48: =Assumptions!$G51*Calculations!$G$6 -> 4666666.667 | K48: =Assumptions!$G51*Calculations!$G$6 -> 4666666.667 | L48: =Assumptions!$G51*Calculations!$G$6 -> 4666666.667 | M48: =Assumptions!$G51*Calculations!$G$6 -> 4666666.667 | N48: =Assumptions!$G51*Calculations!$G$6 -> 4666666.667 | O48: =Assumptions!$G51*Calculations!$G$6 -> 4666666.667 | P48: =Assumptions!$G51*Calculations!$G$6 -> 4666666.667 | Q48: =Assumptions!$G51*Calculations!$G$6 -> 4666666.667 | R48: =Assumptions!$G51*Calculations!$G$6 -> 4666666.667 | S48: =Assumptions!$G51*Calculations!$G$6 -> 4666666.667 | T48: =Assumptions!$G51*Calculations!$G$6 -> 4666666.667 | U48: =Assumptions!$G51*Calculations!$G$6 -> 4666666.667 | V48: =Assumptions!$G51*Calculations!$G$6 -> 4666666.667 | W48: 81670370.37
B49: Property rates | C49: =Assumptions!$G52*Calculations!$G$6*(C$23/SUM(C$23:G$23)) -> 93333.33333 | D49: =Assumptions!$G52*Calculations!$G$6*(D$23/SUM(D$23:H$23)) -> 207407.4074 | E49: =Assumptions!$G52*Calculations!$G$6*(E$23/SUM(E$23:I$23)) -> 400000 | F49: =Assumptions!$G52*Calculations!$G$6*(F$23/SUM(F$23:J$23)) -> 700000 | G49: =Assumptions!$G52*Calculations!$G$6*(G$23/SUM(G$23:K$23)) -> 933333.3333 | H49: =Assumptions!$G52*Calculations!$G$6 -> 933333.3333 | I49: =Assumptions!$G52*Calculations!$G$6 -> 933333.3333 | J49: =Assumptions!$G52*Calculations!$G$6 -> 933333.3333 | K49: =Assumptions!$G52*Calculations!$G$6 -> 933333.3333 | L49: =Assumptions!$G52*Calculations!$G$6 -> 933333.3333 | M49: =Assumptions!$G52*Calculations!$G$6 -> 933333.3333 | N49: =Assumptions!$G52*Calculations!$G$6 -> 933333.3333 | O49: =Assumptions!$G52*Calculations!$G$6 -> 933333.3333 | P49: =Assumptions!$G52*Calculations!$G$6 -> 933333.3333 | Q49: =Assumptions!$G52*Calculations!$G$6 -> 933333.3333 | R49: =Assumptions!$G52*Calculations!$G$6 -> 933333.3333 | S49: =Assumptions!$G52*Calculations!$G$6 -> 933333.3333 | T49: =Assumptions!$G52*Calculations!$G$6 -> 933333.3333 | U49: =Assumptions!$G52*Calculations!$G$6 -> 933333.3333 | V49: =Assumptions!$G52*Calculations!$G$6 -> 933333.3333 | W49: 16334074.07
B50: Professional fees | C50: =Assumptions!$G53*Calculations!$G$6*(C$23/SUM(C$23:G$23)) -> 1200000 | D50: =Assumptions!$G53*Calculations!$G$6*(D$23/SUM(D$23:H$23)) -> 2666666.667 | E50: =Assumptions!$G53*Calculations!$G$6*(E$23/SUM(E$23:I$23)) -> 5142857.143 | F50: =Assumptions!$G53*Calculations!$G$6*(F$23/SUM(F$23:J$23)) -> 9000000 | G50: =Assumptions!$G53*Calculations!$G$6*(G$23/SUM(G$23:K$23)) -> 12000000 | H50: =Assumptions!$G53*Calculations!$G$6 -> 12000000 | I50: =Assumptions!$G53*Calculations!$G$6 -> 12000000 | J50: =Assumptions!$G53*Calculations!$G$6 -> 12000000 | K50: =Assumptions!$G53*Calculations!$G$6 -> 12000000 | L50: =Assumptions!$G53*Calculations!$G$6 -> 12000000 | M50: =Assumptions!$G53*Calculations!$G$6 -> 12000000 | N50: =Assumptions!$G53*Calculations!$G$6 -> 12000000 | O50: =Assumptions!$G53*Calculations!$G$6 -> 12000000 | P50: =Assumptions!$G53*Calculations!$G$6 -> 12000000 | Q50: =Assumptions!$G53*Calculations!$G$6 -> 12000000 | R50: =Assumptions!$G53*Calculations!$G$6 -> 12000000 | S50: =Assumptions!$G53*Calculations!$G$6 -> 12000000 | T50: =Assumptions!$G53*Calculations!$G$6 -> 12000000 | U50: =Assumptions!$G53*Calculations!$G$6 -> 12000000 | V50: =Assumptions!$G53*Calculations!$G$6 -> 12000000 | W50: 210009523.8
B51: Other operating expenses | C51: =Assumptions!$G54*Calculations!$G$6*(C$23/SUM(C$23:G$23)) -> 3866666.667 | D51: =Assumptions!$G54*Calculations!$G$6*(D$23/SUM(D$23:H$23)) -> 8592592.593 | E51: =Assumptions!$G54*Calculations!$G$6*(E$23/SUM(E$23:I$23)) -> 16571428.57 | F51: =Assumptions!$G54*Calculations!$G$6*(F$23/SUM(F$23:J$23)) -> 29000000 | G51: =Assumptions!$G54*Calculations!$G$6*(G$23/SUM(G$23:K$23)) -> 38666666.67 | H51: =Assumptions!$G54*Calculations!$G$6 -> 38666666.67 | I51: =Assumptions!$G54*Calculations!$G$6 -> 38666666.67 | J51: =Assumptions!$G54*Calculations!$G$6 -> 38666666.67 | K51: =Assumptions!$G54*Calculations!$G$6 -> 38666666.67 | L51: =Assumptions!$G54*Calculations!$G$6 -> 38666666.67 | M51: =Assumptions!$G54*Calculations!$G$6 -> 38666666.67 | N51: =Assumptions!$G54*Calculations!$G$6 -> 38666666.67 | O51: =Assumptions!$G54*Calculations!$G$6 -> 38666666.67 | P51: =Assumptions!$G54*Calculations!$G$6 -> 38666666.67 | Q51: =Assumptions!$G54*Calculations!$G$6 -> 38666666.67 | R51: =Assumptions!$G54*Calculations!$G$6 -> 38666666.67 | S51: =Assumptions!$G54*Calculations!$G$6 -> 38666666.67 | T51: =Assumptions!$G54*Calculations!$G$6 -> 38666666.67 | U51: =Assumptions!$G54*Calculations!$G$6 -> 38666666.67 | V51: =Assumptions!$G54*Calculations!$G$6 -> 38666666.67 | W51: 676697354.5
B52: Total | C52: =SUM(C46:C51) -> 7520000 | D52: =SUM(D46:D51) -> 16711111.11 | E52: 32228571.43 | F52: 56400000 | G52: 75200000 | H52: 75200000 | I52: 75200000 | J52: 75200000 | K52: 75200000 | L52: 75200000 | M52: 75200000 | N52: 75200000 | O52: 75200000 | P52: 75200000 | Q52: 75200000 | R52: 75200000 | S52: 75200000 | T52: 75200000 | U52: 75200000 | V52: 75200000 | W52: 1316059683
B54: Variable costs based on tenants | C54: 1 | D54: 2 | E54: 3 | F54: 4 | G54: 5 | H54: 6 | I54: 7 | J54: 8 | K54: 9 | L54: 10 | M54: 11 | N54: 12 | O54: 13 | P54: 14 | Q54: 15 | R54: 16 | S54: 17 | T54: 18 | U54: 19 | V54: 20 | W54: Total
B55: Staff costs | C55: =C$30/Calculations!$F$13*Assumptions!$G59*Calculations!$E$13 -> 0 | D55: =D$30/Calculations!$F$13*Assumptions!$G59*Calculations!$E$13 -> 0 | E55: =E$30/Calculations!$F$13*Assumptions!$G59*Calculations!$E$13 -> 0 | F55: =F$30/Calculations!$F$13*Assumptions!$G59*Calculations!$E$13 -> 0 | G55: =G$30/Calculations!$F$13*Assumptions!$G59*Calculations!$E$13 -> 0 | H55: =H$30/Calculations!$F$13*Assumptions!$G59*Calculations!$E$13 -> 67666.66667 | I55: =I$30/Calculations!$F$13*Assumptions!$G59*Calculations!$E$13 -> 135333.3333 | J55: =J$30/Calculations!$F$13*Assumptions!$G59*Calculations!$E$13 -> 203000 | K55: =K$30/Calculations!$F$13*Assumptions!$G59*Calculations!$E$13 -> 270666.6667 | L55: =L$30/Calculations!$F$13*Assumptions!$G59*Calculations!$E$13 -> 338333.3333 | M55: =M$30/Calculations!$F$13*Assumptions!$G59*Calculations!$E$13 -> 406000 | N55: =N$30/Calculations!$F$13*Assumptions!$G59*Calculations!$E$13 -> 473666.6667 | O55: =O$30/Calculations!$F$13*Assumptions!$G59*Calculations!$E$13 -> 541333.3333 | P55: =P$30/Calculations!$F$13*Assumptions!$G59*Calculations!$E$13 -> 609000 | Q55: =Q$30/Calculations!$F$13*Assumptions!$G59*Calculations!$E$13 -> 676666.6667 | R55: =R$30/Calculations!$F$13*Assumptions!$G59*Calculations!$E$13 -> 744333.3333 | S55: =S$30/Calculations!$F$13*Assumptions!$G59*Calculations!$E$13 -> 812000 | T55: =T$30/Calculations!$F$13*Assumptions!$G59*Calculations!$E$13 -> 879666.6667 | U55: =U$30/Calculations!$F$13*Assumptions!$G59*Calculations!$E$13 -> 947333.3333 | V55: =V$30/Calculations!$F$13*Assumptions!$G59*Calculations!$E$13 -> 1015000 | W55: =SUM(C55:V55) -> 8120000
B56: Travel and accommodation | C56: =C$30/Calculations!$F$13*Assumptions!$G60*Calculations!$E$13 -> 0 | D56: =D$30/Calculations!$F$13*Assumptions!$G60*Calculations!$E$13 -> 0 | E56: =E$30/Calculations!$F$13*Assumptions!$G60*Calculations!$E$13 -> 0 | F56: =F$30/Calculations!$F$13*Assumptions!$G60*Calculations!$E$13 -> 0 | G56: =G$30/Calculations!$F$13*Assumptions!$G60*Calculations!$E$13 -> 0 | H56: =H$30/Calculations!$F$13*Assumptions!$G60*Calculations!$E$13 -> 14500 | I56: =I$30/Calculations!$F$13*Assumptions!$G60*Calculations!$E$13 -> 29000 | J56: =J$30/Calculations!$F$13*Assumptions!$G60*Calculations!$E$13 -> 43500 | K56: =K$30/Calculations!$F$13*Assumptions!$G60*Calculations!$E$13 -> 58000 | L56: =L$30/Calculations!$F$13*Assumptions!$G60*Calculations!$E$13 -> 72500 | M56: =M$30/Calculations!$F$13*Assumptions!$G60*Calculations!$E$13 -> 87000 | N56: =N$30/Calculations!$F$13*Assumptions!$G60*Calculations!$E$13 -> 101500 | O56: =O$30/Calculations!$F$13*Assumptions!$G60*Calculations!$E$13 -> 116000 | P56: =P$30/Calculations!$F$13*Assumptions!$G60*Calculations!$E$13 -> 130500 | Q56: =Q$30/Calculations!$F$13*Assumptions!$G60*Calculations!$E$13 -> 145000 | R56: =R$30/Calculations!$F$13*Assumptions!$G60*Calculations!$E$13 -> 159500 | S56: =S$30/Calculations!$F$13*Assumptions!$G60*Calculations!$E$13 -> 174000 | T56: =T$30/Calculations!$F$13*Assumptions!$G60*Calculations!$E$13 -> 188500 | U56: =U$30/Calculations!$F$13*Assumptions!$G60*Calculations!$E$13 -> 203000 | V56: =V$30/Calculations!$F$13*Assumptions!$G60*Calculations!$E$13 -> 217500 | W56: 1740000
B57: Marketing | C57: =C$30/Calculations!$F$13*Assumptions!$G61*Calculations!$E$13 -> 0 | D57: =D$30/Calculations!$F$13*Assumptions!$G61*Calculations!$E$13 -> 0 | E57: =E$30/Calculations!$F$13*Assumptions!$G61*Calculations!$E$13 -> 0 | F57: =F$30/Calculations!$F$13*Assumptions!$G61*Calculations!$E$13 -> 0 | G57: =G$30/Calculations!$F$13*Assumptions!$G61*Calculations!$E$13 -> 0 | H57: =H$30/Calculations!$F$13*Assumptions!$G61*Calculations!$E$13 -> 19623.33333 | I57: =I$30/Calculations!$F$13*Assumptions!$G61*Calculations!$E$13 -> 39246.66667 | J57: =J$30/Calculations!$F$13*Assumptions!$G61*Calculations!$E$13 -> 58870 | K57: =K$30/Calculations!$F$13*Assumptions!$G61*Calculations!$E$13 -> 78493.33333 | L57: =L$30/Calculations!$F$13*Assumptions!$G61*Calculations!$E$13 -> 98116.66667 | M57: =M$30/Calculations!$F$13*Assumptions!$G61*Calculations!$E$13 -> 117740 | N57: =N$30/Calculations!$F$13*Assumptions!$G61*Calculations!$E$13 -> 137363.3333 | O57: =O$30/Calculations!$F$13*Assumptions!$G61*Calculations!$E$13 -> 156986.6667 | P57: =P$30/Calculations!$F$13*Assumptions!$G61*Calculations!$E$13 -> 176610 | Q57: =Q$30/Calculations!$F$13*Assumptions!$G61*Calculations!$E$13 -> 196233.3333 | R57: =R$30/Calculations!$F$13*Assumptions!$G61*Calculations!$E$13 -> 215856.6667 | S57: =S$30/Calculations!$F$13*Assumptions!$G61*Calculations!$E$13 -> 235480 | T57: =T$30/Calculations!$F$13*Assumptions!$G61*Calculations!$E$13 -> 255103.3333 | U57: =U$30/Calculations!$F$13*Assumptions!$G61*Calculations!$E$13 -> 274726.6667 | V57: =V$30/Calculations!$F$13*Assumptions!$G61*Calculations!$E$13 -> 294350 | W57: 2354800
B58: Property rates | C58: =C$30/Calculations!$F$13*Assumptions!$G62*Calculations!$E$13 -> 0 | D58: =D$30/Calculations!$F$13*Assumptions!$G62*Calculations!$E$13 -> 0 | E58: =E$30/Calculations!$F$13*Assumptions!$G62*Calculations!$E$13 -> 0 | F58: =F$30/Calculations!$F$13*Assumptions!$G62*Calculations!$E$13 -> 0 | G58: =G$30/Calculations!$F$13*Assumptions!$G62*Calculations!$E$13 -> 0 | H58: =H$30/Calculations!$F$13*Assumptions!$G62*Calculations!$E$13 -> 11600 | I58: =I$30/Calculations!$F$13*Assumptions!$G62*Calculations!$E$13 -> 23200 | J58: =J$30/Calculations!$F$13*Assumptions!$G62*Calculations!$E$13 -> 34800 | K58: =K$30/Calculations!$F$13*Assumptions!$G62*Calculations!$E$13 -> 46400 | L58: =L$30/Calculations!$F$13*Assumptions!$G62*Calculations!$E$13 -> 58000 | M58: =M$30/Calculations!$F$13*Assumptions!$G62*Calculations!$E$13 -> 69600 | N58: =N$30/Calculations!$F$13*Assumptions!$G62*Calculations!$E$13 -> 81200 | O58: =O$30/Calculations!$F$13*Assumptions!$G62*Calculations!$E$13 -> 92800 | P58: =P$30/Calculations!$F$13*Assumptions!$G62*Calculations!$E$13 -> 104400 | Q58: =Q$30/Calculations!$F$13*Assumptions!$G62*Calculations!$E$13 -> 116000 | R58: =R$30/Calculations!$F$13*Assumptions!$G62*Calculations!$E$13 -> 127600 | S58: =S$30/Calculations!$F$13*Assumptions!$G62*Calculations!$E$13 -> 139200 | T58: =T$30/Calculations!$F$13*Assumptions!$G62*Calculations!$E$13 -> 150800 | U58: =U$30/Calculations!$F$13*Assumptions!$G62*Calculations!$E$13 -> 162400 | V58: =V$30/Calculations!$F$13*Assumptions!$G62*Calculations!$E$13 -> 174000 | W58: 1392000
B59: Professional fees | C59: =C$30/Calculations!$F$13*Assumptions!$G63*Calculations!$E$13 -> 0 | D59: =D$30/Calculations!$F$13*Assumptions!$G63*Calculations!$E$13 -> 0 | E59: =E$30/Calculations!$F$13*Assumptions!$G63*Calculations!$E$13 -> 0 | F59: =F$30/Calculations!$F$13*Assumptions!$G63*Calculations!$E$13 -> 0 | G59: =G$30/Calculations!$F$13*Assumptions!$G63*Calculations!$E$13 -> 0 | H59: =H$30/Calculations!$F$13*Assumptions!$G63*Calculations!$E$13 -> 15466.66667 | I59: =I$30/Calculations!$F$13*Assumptions!$G63*Calculations!$E$13 -> 30933.33333 | J59: =J$30/Calculations!$F$13*Assumptions!$G63*Calculations!$E$13 -> 46400 | K59: =K$30/Calculations!$F$13*Assumptions!$G63*Calculations!$E$13 -> 61866.66667 | L59: =L$30/Calculations!$F$13*Assumptions!$G63*Calculations!$E$13 -> 77333.33333 | M59: =M$30/Calculations!$F$13*Assumptions!$G63*Calculations!$E$13 -> 92800 | N59: =N$30/Calculations!$F$13*Assumptions!$G63*Calculations!$E$13 -> 108266.6667 | O59: =O$30/Calculations!$F$13*Assumptions!$G63*Calculations!$E$13 -> 123733.3333 | P59: =P$30/Calculations!$F$13*Assumptions!$G63*Calculations!$E$13 -> 139200 | Q59: =Q$30/Calculations!$F$13*Assumptions!$G63*Calculations!$E$13 -> 154666.6667 | R59: =R$30/Calculations!$F$13*Assumptions!$G63*Calculations!$E$13 -> 170133.3333 | S59: =S$30/Calculations!$F$13*Assumptions!$G63*Calculations!$E$13 -> 185600 | T59: =T$30/Calculations!$F$13*Assumptions!$G63*Calculations!$E$13 -> 201066.6667 | U59: =U$30/Calculations!$F$13*Assumptions!$G63*Calculations!$E$13 -> 216533.3333 | V59: =V$30/Calculations!$F$13*Assumptions!$G63*Calculations!$E$13 -> 232000 | W59: 1856000
B60: Other operating expenses | C60: =C$30/Calculations!$F$13*Assumptions!$G64*Calculations!$E$13 -> 0 | D60: =D$30/Calculations!$F$13*Assumptions!$G64*Calculations!$E$13 -> 0 | E60: =E$30/Calculations!$F$13*Assumptions!$G64*Calculations!$E$13 -> 0 | F60: =F$30/Calculations!$F$13*Assumptions!$G64*Calculations!$E$13 -> 0 | G60: =G$30/Calculations!$F$13*Assumptions!$G64*Calculations!$E$13 -> 0 | H60: =H$30/Calculations!$F$13*Assumptions!$G64*Calculations!$E$13 -> 63800 | I60: =I$30/Calculations!$F$13*Assumptions!$G64*Calculations!$E$13 -> 127600 | J60: =J$30/Calculations!$F$13*Assumptions!$G64*Calculations!$E$13 -> 191400 | K60: =K$30/Calculations!$F$13*Assumptions!$G64*Calculations!$E$13 -> 255200 | L60: =L$30/Calculations!$F$13*Assumptions!$G64*Calculations!$E$13 -> 319000 | M60: =M$30/Calculations!$F$13*Assumptions!$G64*Calculations!$E$13 -> 382800 | N60: =N$30/Calculations!$F$13*Assumptions!$G64*Calculations!$E$13 -> 446600 | O60: =O$30/Calculations!$F$13*Assumptions!$G64*Calculations!$E$13 -> 510400 | P60: =P$30/Calculations!$F$13*Assumptions!$G64*Calculations!$E$13 -> 574200 | Q60: =Q$30/Calculations!$F$13*Assumptions!$G64*Calculations!$E$13 -> 638000 | R60: =R$30/Calculations!$F$13*Assumptions!$G64*Calculations!$E$13 -> 701800 | S60: =S$30/Calculations!$F$13*Assumptions!$G64*Calculations!$E$13 -> 765600 | T60: =T$30/Calculations!$F$13*Assumptions!$G64*Calculations!$E$13 -> 829400 | U60: =U$30/Calculations!$F$13*Assumptions!$G64*Calculations!$E$13 -> 893200 | V60: =V$30/Calculations!$F$13*Assumptions!$G64*Calculations!$E$13 -> 957000 | W60: 7656000
B61: Total | C61: =C$30/Calculations!$F$13*Assumptions!$G65*Calculations!$E$13 -> 0 | D61: =D$30/Calculations!$F$13*Assumptions!$G65*Calculations!$E$13 -> 0 | E61: =E$30/Calculations!$F$13*Assumptions!$G65*Calculations!$E$13 -> 0 | F61: =F$30/Calculations!$F$13*Assumptions!$G65*Calculations!$E$13 -> 0 | G61: =G$30/Calculations!$F$13*Assumptions!$G65*Calculations!$E$13 -> 0 | H61: =H$30/Calculations!$F$13*Assumptions!$G65*Calculations!$E$13 -> 192656.6667 | I61: =I$30/Calculations!$F$13*Assumptions!$G65*Calculations!$E$13 -> 385313.3333 | J61: =J$30/Calculations!$F$13*Assumptions!$G65*Calculations!$E$13 -> 577970 | K61: =K$30/Calculations!$F$13*Assumptions!$G65*Calculations!$E$13 -> 770626.6667 | L61: =L$30/Calculations!$F$13*Assumptions!$G65*Calculations!$E$13 -> 963283.3333 | M61: =M$30/Calculations!$F$13*Assumptions!$G65*Calculations!$E$13 -> 1155940 | N61: =N$30/Calculations!$F$13*Assumptions!$G65*Calculations!$E$13 -> 1348596.667 | O61: =O$30/Calculations!$F$13*Assumptions!$G65*Calculations!$E$13 -> 1541253.333 | P61: =P$30/Calculations!$F$13*Assumptions!$G65*Calculations!$E$13 -> 1733910 | Q61: =Q$30/Calculations!$F$13*Assumptions!$G65*Calculations!$E$13 -> 1926566.667 | R61: =R$30/Calculations!$F$13*Assumptions!$G65*Calculations!$E$13 -> 2119223.333 | S61: =S$30/Calculations!$F$13*Assumptions!$G65*Calculations!$E$13 -> 2311880 | T61: =T$30/Calculations!$F$13*Assumptions!$G65*Calculations!$E$13 -> 2504536.667 | U61: =U$30/Calculations!$F$13*Assumptions!$G65*Calculations!$E$13 -> 2697193.333 | V61: =V$30/Calculations!$F$13*Assumptions!$G65*Calculations!$E$13 -> 2889850 | W61: 23118800
B63: Total operating costs by classification | C63: 1 | D63: 2 | E63: 3 | F63: 4 | G63: 5 | H63: 6 | I63: 7 | J63: 8 | K63: 9 | L63: 10 | M63: 11 | N63: 12 | O63: 13 | P63: 14 | Q63: 15 | R63: 16 | S63: 17 | T63: 18 | U63: 19 | V63: 20 | W63: Total
B64: Staff costs | C64: =C37+C46+C55 -> 15600000 | D64: =D37+D46+D55 -> 17555555.56 | E64: 20857142.86 | F64: 26000000 | G64: 30000000 | H64: 30067666.67 | I64: 30135333.33 | J64: 30203000 | K64: 30270666.67 | L64: 30338333.33 | M64: 30406000 | N64: 30473666.67 | O64: 30541333.33 | P64: 30609000 | Q64: 30676666.67 | R64: 30744333.33 | S64: 30812000 | T64: 30879666.67 | U64: 30947333.33 | V64: 31015000 | W64: =SUM(C64:V64) -> 568132698.4
B65: Travel and accommodation | C65: =C38+C47+C56 -> 1293333.333 | D65: 1651851.852 | E65: 2257142.857 | F65: 3200000 | G65: 3933333.333 | H65: 3947833.333 | I65: 3962333.333 | J65: 3976833.333 | K65: 3991333.333 | L65: 4005833.333 | M65: 4020333.333 | N65: 4034833.333 | O65: 4049333.333 | P65: 4063833.333 | Q65: 4078333.333 | R65: 4092833.333 | S65: 4107333.333 | T65: 4121833.333 | U65: 4136333.333 | V65: 4150833.333 | W65: 73075661.38
B66: Marketing | C66: =C39+C48+C57 -> 1216666.667 | D66: 1787037.037 | E66: 2750000 | F66: 4250000 | G66: 5416666.667 | H66: 5436290 | I66: 5455913.333 | J66: 5475536.667 | K66: 5495160 | L66: 5514783.333 | M66: 5534406.667 | N66: 5554030 | O66: 5573653.333 | P66: 5593276.667 | Q66: 5612900 | R66: 5632523.333 | S66: 5652146.667 | T66: 5671770 | U66: 5691393.333 | V66: 5711016.667 | W66: 99025170.37
B67: Property rates | C67: =C40+C49+C58 -> 1093333.333 | D67: 1207407.407 | E67: 1400000 | F67: 1700000 | G67: 1933333.333 | H67: 1944933.333 | I67: 1956533.333 | J67: 1968133.333 | K67: 1979733.333 | L67: 1991333.333 | M67: 2002933.333 | N67: 2014533.333 | O67: 2026133.333 | P67: 2037733.333 | Q67: 2049333.333 | R67: 2060933.333 | S67: 2072533.333 | T67: 2084133.333 | U67: 2095733.333 | V67: 2107333.333 | W67: 37726074.07
B68: Professional fees | C68: =C41+C50+C59 -> 3700000 | D68: 5166666.667 | E68: 7642857.143 | F68: 11500000 | G68: 14500000 | H68: 14515466.67 | I68: 14530933.33 | J68: 14546400 | K68: 14561866.67 | L68: 14577333.33 | M68: 14592800 | N68: 14608266.67 | O68: 14623733.33 | P68: 14639200 | Q68: 14654666.67 | R68: 14670133.33 | S68: 14685600 | T68: 14701066.67 | U68: 14716533.33 | V68: 14732000 | W68: 261865523.8
B69: Other operating expenses | C69: =C42+C51+C60 -> 5866666.667 | D69: 10592592.59 | E69: 18571428.57 | F69: 31000000 | G69: 40666666.67 | H69: 40730466.67 | I69: 40794266.67 | J69: 40858066.67 | K69: 40921866.67 | L69: 40985666.67 | M69: 41049466.67 | N69: 41113266.67 | O69: 41177066.67 | P69: 41240866.67 | Q69: 41304666.67 | R69: 41368466.67 | S69: 41432266.67 | T69: 41496066.67 | U69: 41559866.67 | V69: 41623666.67 | W69: 724353354.5
B70: Total | C70: =C43+C52+C61 -> 28770000 | D70: 37961111.11 | E70: 53478571.43 | F70: 77650000 | G70: 96450000 | H70: 96642656.67 | I70: 96835313.33 | J70: 97027970 | K70: 97220626.67 | L70: 97413283.33 | M70: 97605940 | N70: 97798596.67 | O70: 97991253.33 | P70: 98183910 | Q70: 98376566.67 | R70: 98569223.33 | S70: 98761880 | T70: 98954536.67 | U70: 99147193.33 | V70: 99339850 | W70: 1764178483
B72: Total operating costs by unit | C72: 1 | D72: 2 | E72: 3 | F72: 4 | G72: 5 | H72: 6 | I72: 7 | J72: 8 | K72: 9 | L72: 10 | M72: 11 | N72: 12 | O72: 13 | P72: 14 | Q72: 15 | R72: 16 | S72: 17 | T72: 18 | U72: 19 | V72: 20 | W72: Total
B73: Admin and corp. services | C73: =Assumptions!$C$45+(C$52*(Assumptions!$C$55/Assumptions!$G$55))+(C$61*(Assumptions!$C$65/Assumptions!$G$65)) -> 8193333.333 | D73: =Assumptions!$C$45+(D$52*(Assumptions!$C$55/Assumptions!$G$55))+(D$61*(Assumptions!$C$65/Assumptions!$G$65)) -> 10018518.52 | E73: =Assumptions!$C$45+(E$52*(Assumptions!$C$55/Assumptions!$G$55))+(E$61*(Assumptions!$C$65/Assumptions!$G$65)) -> 13100000 | F73: =Assumptions!$C$45+(F$52*(Assumptions!$C$55/Assumptions!$G$55))+(F$61*(Assumptions!$C$65/Assumptions!$G$65)) -> 17900000 | G73: =Assumptions!$C$45+(G$52*(Assumptions!$C$55/Assumptions!$G$55))+(G$61*(Assumptions!$C$65/Assumptions!$G$65)) -> 21633333.33 | H73: =Assumptions!$C$45+(H$52*(Assumptions!$C$55/Assumptions!$G$55))+(H$61*(Assumptions!$C$65/Assumptions!$G$65)) -> 21659723.33 | I73: =Assumptions!$C$45+(I$52*(Assumptions!$C$55/Assumptions!$G$55))+(I$61*(Assumptions!$C$65/Assumptions!$G$65)) -> 21686113.33 | J73: =Assumptions!$C$45+(J$52*(Assumptions!$C$55/Assumptions!$G$55))+(J$61*(Assumptions!$C$65/Assumptions!$G$65)) -> 21712503.33 | K73: =Assumptions!$C$45+(K$52*(Assumptions!$C$55/Assumptions!$G$55))+(K$61*(Assumptions!$C$65/Assumptions!$G$65)) -> 21738893.33 | L73: =Assumptions!$C$45+(L$52*(Assumptions!$C$55/Assumptions!$G$55))+(L$61*(Assumptions!$C$65/Assumptions!$G$65)) -> 21765283.33 | M73: =Assumptions!$C$45+(M$52*(Assumptions!$C$55/Assumptions!$G$55))+(M$61*(Assumptions!$C$65/Assumptions!$G$65)) -> 21791673.33 | N73: =Assumptions!$C$45+(N$52*(Assumptions!$C$55/Assumptions!$G$55))+(N$61*(Assumptions!$C$65/Assumptions!$G$65)) -> 21818063.33 | O73: =Assumptions!$C$45+(O$52*(Assumptions!$C$55/Assumptions!$G$55))+(O$61*(Assumptions!$C$65/Assumptions!$G$65)) -> 21844453.33 | P73: =Assumptions!$C$45+(P$52*(Assumptions!$C$55/Assumptions!$G$55))+(P$61*(Assumptions!$C$65/Assumptions!$G$65)) -> 21870843.33 | Q73: =Assumptions!$C$45+(Q$52*(Assumptions!$C$55/Assumptions!$G$55))+(Q$61*(Assumptions!$C$65/Assumptions!$G$65)) -> 21897233.33 | R73: =Assumptions!$C$45+(R$52*(Assumptions!$C$55/Assumptions!$G$55))+(R$61*(Assumptions!$C$65/Assumptions!$G$65)) -> 21923623.33 | S73: =Assumptions!$C$45+(S$52*(Assumptions!$C$55/Assumptions!$G$55))+(S$61*(Assumptions!$C$65/Assumptions!$G$65)) -> 21950013.33 | T73: =Assumptions!$C$45+(T$52*(Assumptions!$C$55/Assumptions!$G$55))+(T$61*(Assumptions!$C$65/Assumptions!$G$65)) -> 21976403.33 | U73: =Assumptions!$C$45+(U$52*(Assumptions!$C$55/Assumptions!$G$55))+(U$61*(Assumptions!$C$65/Assumptions!$G$65)) -> 22002793.33 | V73: =Assumptions!$C$45+(V$52*(Assumptions!$C$55/Assumptions!$G$55))+(V$61*(Assumptions!$C$65/Assumptions!$G$65)) -> 22029183.33 | W73: =SUM(C73:V73) -> 398511985.2
B74: Business Development | C74: =Assumptions!$D$45+(C$52*(Assumptions!$D$55/Assumptions!$G$55))+(C$61*(Assumptions!$D$65/Assumptions!$G$65)) -> 5750000 | D74: =Assumptions!$D$45+(D$52*(Assumptions!$D$55/Assumptions!$G$55))+(D$61*(Assumptions!$D$65/Assumptions!$G$65)) -> 7216666.667 | E74: =Assumptions!$D$45+(E$52*(Assumptions!$D$55/Assumptions!$G$55))+(E$61*(Assumptions!$D$65/Assumptions!$G$65)) -> 9692857.143 | F74: =Assumptions!$D$45+(F$52*(Assumptions!$D$55/Assumptions!$G$55))+(F$61*(Assumptions!$D$65/Assumptions!$G$65)) -> 13550000 | G74: =Assumptions!$D$45+(G$52*(Assumptions!$D$55/Assumptions!$G$55))+(G$61*(Assumptions!$D$65/Assumptions!$G$65)) -> 16550000 | H74: =Assumptions!$D$45+(H$52*(Assumptions!$D$55/Assumptions!$G$55))+(H$61*(Assumptions!$D$65/Assumptions!$G$65)) -> 16574166.67 | I74: =Assumptions!$D$45+(I$52*(Assumptions!$D$55/Assumptions!$G$55))+(I$61*(Assumptions!$D$65/Assumptions!$G$65)) -> 16598333.33 | J74: =Assumptions!$D$45+(J$52*(Assumptions!$D$55/Assumptions!$G$55))+(J$61*(Assumptions!$D$65/Assumptions!$G$65)) -> 16622500 | K74: =Assumptions!$D$45+(K$52*(Assumptions!$D$55/Assumptions!$G$55))+(K$61*(Assumptions!$D$65/Assumptions!$G$65)) -> 16646666.67 | L74: =Assumptions!$D$45+(L$52*(Assumptions!$D$55/Assumptions!$G$55))+(L$61*(Assumptions!$D$65/Assumptions!$G$65)) -> 16670833.33 | M74: =Assumptions!$D$45+(M$52*(Assumptions!$D$55/Assumptions!$G$55))+(M$61*(Assumptions!$D$65/Assumptions!$G$65)) -> 16695000 | N74: =Assumptions!$D$45+(N$52*(Assumptions!$D$55/Assumptions!$G$55))+(N$61*(Assumptions!$D$65/Assumptions!$G$65)) -> 16719166.67 | O74: =Assumptions!$D$45+(O$52*(Assumptions!$D$55/Assumptions!$G$55))+(O$61*(Assumptions!$D$65/Assumptions!$G$65)) -> 16743333.33 | P74: =Assumptions!$D$45+(P$52*(Assumptions!$D$55/Assumptions!$G$55))+(P$61*(Assumptions!$D$65/Assumptions!$G$65)) -> 16767500 | Q74: =Assumptions!$D$45+(Q$52*(Assumptions!$D$55/Assumptions!$G$55))+(Q$61*(Assumptions!$D$65/Assumptions!$G$65)) -> 16791666.67 | R74: =Assumptions!$D$45+(R$52*(Assumptions!$D$55/Assumptions!$G$55))+(R$61*(Assumptions!$D$65/Assumptions!$G$65)) -> 16815833.33 | S74: =Assumptions!$D$45+(S$52*(Assumptions!$D$55/Assumptions!$G$55))+(S$61*(Assumptions!$D$65/Assumptions!$G$65)) -> 16840000 | T74: =Assumptions!$D$45+(T$52*(Assumptions!$D$55/Assumptions!$G$55))+(T$61*(Assumptions!$D$65/Assumptions!$G$65)) -> 16864166.67 | U74: =Assumptions!$D$45+(U$52*(Assumptions!$D$55/Assumptions!$G$55))+(U$61*(Assumptions!$D$65/Assumptions!$G$65)) -> 16888333.33 | V74: =Assumptions!$D$45+(V$52*(Assumptions!$D$55/Assumptions!$G$55))+(V$61*(Assumptions!$D$65/Assumptions!$G$65)) -> 16912500 | W74: =SUM(C74:V74) -> 303909523.8
B75: Operations | C75: =Assumptions!$E$45+(C$52*(Assumptions!$E$55/Assumptions!$G$55))+(C$61*(Assumptions!$E$65/Assumptions!$G$65)) -> 14826666.67 | D75: =Assumptions!$E$45+(D$52*(Assumptions!$E$55/Assumptions!$G$55))+(D$61*(Assumptions!$E$65/Assumptions!$G$65)) -> 20725925.93 | E75: =Assumptions!$E$45+(E$52*(Assumptions!$E$55/Assumptions!$G$55))+(E$61*(Assumptions!$E$65/Assumptions!$G$65)) -> 30685714.29 | F75: =Assumptions!$E$45+(F$52*(Assumptions!$E$55/Assumptions!$G$55))+(F$61*(Assumptions!$E$65/Assumptions!$G$65)) -> 46200000 | G75: =Assumptions!$E$45+(G$52*(Assumptions!$E$55/Assumptions!$G$55))+(G$61*(Assumptions!$E$65/Assumptions!$G$65)) -> 58266666.67 | H75: =Assumptions!$E$45+(H$52*(Assumptions!$E$55/Assumptions!$G$55))+(H$61*(Assumptions!$E$65/Assumptions!$G$65)) -> 58306300 | I75: =Assumptions!$E$45+(I$52*(Assumptions!$E$55/Assumptions!$G$55))+(I$61*(Assumptions!$E$65/Assumptions!$G$65)) -> 58345933.33 | J75: =Assumptions!$E$45+(J$52*(Assumptions!$E$55/Assumptions!$G$55))+(J$61*(Assumptions!$E$65/Assumptions!$G$65)) -> 58385566.67 | K75: =Assumptions!$E$45+(K$52*(Assumptions!$E$55/Assumptions!$G$55))+(K$61*(Assumptions!$E$65/Assumptions!$G$65)) -> 58425200 | L75: =Assumptions!$E$45+(L$52*(Assumptions!$E$55/Assumptions!$G$55))+(L$61*(Assumptions!$E$65/Assumptions!$G$65)) -> 58464833.33 | M75: =Assumptions!$E$45+(M$52*(Assumptions!$E$55/Assumptions!$G$55))+(M$61*(Assumptions!$E$65/Assumptions!$G$65)) -> 58504466.67 | N75: =Assumptions!$E$45+(N$52*(Assumptions!$E$55/Assumptions!$G$55))+(N$61*(Assumptions!$E$65/Assumptions!$G$65)) -> 58544100 | O75: =Assumptions!$E$45+(O$52*(Assumptions!$E$55/Assumptions!$G$55))+(O$61*(Assumptions!$E$65/Assumptions!$G$65)) -> 58583733.33 | P75: =Assumptions!$E$45+(P$52*(Assumptions!$E$55/Assumptions!$G$55))+(P$61*(Assumptions!$E$65/Assumptions!$G$65)) -> 58623366.67 | Q75: =Assumptions!$E$45+(Q$52*(Assumptions!$E$55/Assumptions!$G$55))+(Q$61*(Assumptions!$E$65/Assumptions!$G$65)) -> 58663000 | R75: =Assumptions!$E$45+(R$52*(Assumptions!$E$55/Assumptions!$G$55))+(R$61*(Assumptions!$E$65/Assumptions!$G$65)) -> 58702633.33 | S75: =Assumptions!$E$45+(S$52*(Assumptions!$E$55/Assumptions!$G$55))+(S$61*(Assumptions!$E$65/Assumptions!$G$65)) -> 58742266.67 | T75: =Assumptions!$E$45+(T$52*(Assumptions!$E$55/Assumptions!$G$55))+(T$61*(Assumptions!$E$65/Assumptions!$G$65)) -> 58781900 | U75: =Assumptions!$E$45+(U$52*(Assumptions!$E$55/Assumptions!$G$55))+(U$61*(Assumptions!$E$65/Assumptions!$G$65)) -> 58821533.33 | V75: =Assumptions!$E$45+(V$52*(Assumptions!$E$55/Assumptions!$G$55))+(V$61*(Assumptions!$E$65/Assumptions!$G$65)) -> 58861166.67 | W75: 1049460974
B76: Investor servicing | C76: =Assumptions!$F$45+(C$52*(Assumptions!$F$55/Assumptions!$G$55))+(C$61*(Assumptions!$F$65/Assumptions!$G$65)) -> 0 | D76: =Assumptions!$F$45+(D$52*(Assumptions!$F$55/Assumptions!$G$55))+(D$61*(Assumptions!$F$65/Assumptions!$G$65)) -> 0 | E76: =Assumptions!$F$45+(E$52*(Assumptions!$F$55/Assumptions!$G$55))+(E$61*(Assumptions!$F$65/Assumptions!$G$65)) -> 0 | F76: =Assumptions!$F$45+(F$52*(Assumptions!$F$55/Assumptions!$G$55))+(F$61*(Assumptions!$F$65/Assumptions!$G$65)) -> 0 | G76: =Assumptions!$F$45+(G$52*(Assumptions!$F$55/Assumptions!$G$55))+(G$61*(Assumptions!$F$65/Assumptions!$G$65)) -> 0 | H76: =Assumptions!$F$45+(H$52*(Assumptions!$F$55/Assumptions!$G$55))+(H$61*(Assumptions!$F$65/Assumptions!$G$65)) -> 102466.6667 | I76: =Assumptions!$F$45+(I$52*(Assumptions!$F$55/Assumptions!$G$55))+(I$61*(Assumptions!$F$65/Assumptions!$G$65)) -> 204933.3333 | J76: =Assumptions!$F$45+(J$52*(Assumptions!$F$55/Assumptions!$G$55))+(J$61*(Assumptions!$F$65/Assumptions!$G$65)) -> 307400 | K76: =Assumptions!$F$45+(K$52*(Assumptions!$F$55/Assumptions!$G$55))+(K$61*(Assumptions!$F$65/Assumptions!$G$65)) -> 409866.6667 | L76: =Assumptions!$F$45+(L$52*(Assumptions!$F$55/Assumptions!$G$55))+(L$61*(Assumptions!$F$65/Assumptions!$G$65)) -> 512333.3333 | M76: =Assumptions!$F$45+(M$52*(Assumptions!$F$55/Assumptions!$G$55))+(M$61*(Assumptions!$F$65/Assumptions!$G$65)) -> 614800 | N76: =Assumptions!$F$45+(N$52*(Assumptions!$F$55/Assumptions!$G$55))+(N$61*(Assumptions!$F$65/Assumptions!$G$65)) -> 717266.6667 | O76: =Assumptions!$F$45+(O$52*(Assumptions!$F$55/Assumptions!$G$55))+(O$61*(Assumptions!$F$65/Assumptions!$G$65)) -> 819733.3333 | P76: =Assumptions!$F$45+(P$52*(Assumptions!$F$55/Assumptions!$G$55))+(P$61*(Assumptions!$F$65/Assumptions!$G$65)) -> 922200 | Q76: =Assumptions!$F$45+(Q$52*(Assumptions!$F$55/Assumptions!$G$55))+(Q$61*(Assumptions!$F$65/Assumptions!$G$65)) -> 1024666.667 | R76: =Assumptions!$F$45+(R$52*(Assumptions!$F$55/Assumptions!$G$55))+(R$61*(Assumptions!$F$65/Assumptions!$G$65)) -> 1127133.333 | S76: =Assumptions!$F$45+(S$52*(Assumptions!$F$55/Assumptions!$G$55))+(S$61*(Assumptions!$F$65/Assumptions!$G$65)) -> 1229600 | T76: =Assumptions!$F$45+(T$52*(Assumptions!$F$55/Assumptions!$G$55))+(T$61*(Assumptions!$F$65/Assumptions!$G$65)) -> 1332066.667 | U76: =Assumptions!$F$45+(U$52*(Assumptions!$F$55/Assumptions!$G$55))+(U$61*(Assumptions!$F$65/Assumptions!$G$65)) -> 1434533.333 | V76: =Assumptions!$F$45+(V$52*(Assumptions!$F$55/Assumptions!$G$55))+(V$61*(Assumptions!$F$65/Assumptions!$G$65)) -> 1537000 | W76: 12296000
B77: Total | C77: =SUM(C73:C76) -> 28770000 | D77: =SUM(D73:D76) -> 37961111.11 | E77: 53478571.43 | F77: 77650000 | G77: 96450000 | H77: 96642656.67 | I77: 96835313.33 | J77: 97027970 | K77: 97220626.67 | L77: 97413283.33 | M77: 97605940 | N77: 97798596.67 | O77: 97991253.33 | P77: 98183910 | Q77: 98376566.67 | R77: 98569223.33 | S77: 98761880 | T77: 98954536.67 | U77: 99147193.33 | V77: 99339850 | W77: 1764178483
B79: Operations summary | C79: 1 | D79: 2 | E79: 3 | F79: 4 | G79: 5 | H79: 6 | I79: 7 | J79: 8 | K79: 9 | L79: 10 | M79: 11 | N79: 12 | O79: 13 | P79: 14 | Q79: 15 | R79: 16 | S79: 17 | T79: 18 | U79: 19 | V79: 20 | W79: Total
B80: Annual rental income | C80: =C33 -> 0 | D80: 0 | E80: 0 | F80: 0 | G80: 0 | H80: 966666.6667 | I80: 1933333.333 | J80: 2900000 | K80: 3866666.667 | L80: 4833333.333 | M80: 5800000 | N80: 6766666.667 | O80: 7733333.333 | P80: 8700000 | Q80: 9666666.667 | R80: 10633333.33 | S80: 11600000 | T80: 12566666.67 | U80: 13533333.33 | V80: 14500000 | W80: =SUM(C80:V80) -> 116000000
B81: Annual OPEX | C81: =C70 -> 28770000 | D81: 37961111.11 | E81: 53478571.43 | F81: 77650000 | G81: 96450000 | H81: 96642656.67 | I81: 96835313.33 | J81: 97027970 | K81: 97220626.67 | L81: 97413283.33 | M81: 97605940 | N81: 97798596.67 | O81: 97991253.33 | P81: 98183910 | Q81: 98376566.67 | R81: 98569223.33 | S81: 98761880 | T81: 98954536.67 | U81: 99147193.33 | V81: 99339850 | W81: =SUM(C81:V81) -> 1764178483
B82: Operating profit | C82: =C80-C81 -> -28770000 | D82: -37961111.11 | E82: -53478571.43 | F82: -77650000 | G82: -96450000 | H82: -95675990 | I82: -94901980 | J82: -94127970 | K82: -93353960 | L82: -92579950 | M82: -91805940 | N82: -91031930 | O82: -90257920 | P82: -89483910 | Q82: -88709900 | R82: -87935890 | S82: -87161880 | T82: -86387870 | U82: -85613860 | V82: -84839850 | W82: -1648178483
B83: Operational shortfall | C83: =IF(C82<0,C82,0) -> -28770000 | D83: -37961111.11 | E83: -53478571.43 | F83: -77650000 | G83: -96450000 | H83: -95675990 | I83: -94901980 | J83: -94127970 | K83: -93353960 | L83: -92579950 | M83: -91805940 | N83: -91031930 | O83: -90257920 | P83: -89483910 | Q83: -88709900 | R83: -87935890 | S83: -87161880 | T83: -86387870 | U83: -85613860 | V83: -84839850 | W83: -1648178483
B84: Cumulative operational shortfall | C84: =C83 -> -28770000 | D84: =D83+C84 -> -66731111.11 | E84: -120209682.5 | F84: -197859682.5 | G84: -294309682.5 | H84: -389985672.5 | I84: -484887652.5 | J84: -579015622.5 | K84: -672369582.5 | L84: -764949532.5 | M84: -856755472.5 | N84: -947787402.5 | O84: -1038045323 | P84: -1127529233 | Q84: -1216239133 | R84: -1304175023 | S84: -1391336903 | T84: -1477724773 | U84: -1563338633 | V84: -1648178483
B86: Exports and incentives | C86: 1 | D86: 2 | E86: 3 | F86: 4 | G86: 5 | H86: 6 | I86: 7 | J86: 8 | K86: 9 | L86: 10 | M86: 11 | N86: 12 | O86: 13 | P86: 14 | Q86: 15 | R86: 16 | S86: 17 | T86: 18 | U86: 19 | V86: 20 | W86: Total
B87: Annual exports | C87: 0 | D87: 0 | E87: 0 | F87: 0 | G87: 0 | H87: =H30/$V$30*$L$13 -> 520000 | I87: =I30/$V$30*$L$13 -> 1040000 | J87: 1560000 | K87: 2080000 | L87: 2600000 | M87: 3120000 | N87: 3640000 | O87: 4160000 | P87: 4680000 | Q87: 5200000 | R87: 5720000 | S87: 6240000 | T87: 6760000 | U87: 7280000 | V87: 7800000 | W87: =SUM(C87:V87) -> 62400000
B88: Annual exports | C88: 0 | D88: 0 | E88: 0 | F88: 0 | G88: 0 | H88: =H30/$V$30*$K$13 -> 0 | I88: =I30/$V$30*$K$13 -> 0 | J88: 0 | K88: 0 | L88: 0 | M88: 0 | N88: 0 | O88: 0 | P88: 0 | Q88: 0 | R88: 0 | S88: 0 | T88: 0 | U88: 0 | V88: 0 | W88: =SUM(C88:V88) -> 0

Sheet Results
A2: Estimates of investment and operations for IDZ
C8: Public funding (total over 20 years) | F8: Private investment
C9: Total public CAPEX investment | D9: =Calculations!V29 -> 1908333333 | F9: Total private investment (over 20 years) | G9: =Calculations!V30 -> 675000000
C10: Set up costs (infrastructure) | D10: =Calculations!J6 -> 1333333333 | F10: Capital Leverage (Rand private investment per Rand public investment) | G10: =G9/D9 -> 0.3537117904
C11: Cofunding investors | D11: =Calculations!G13 -> 575000000 | F11: Capital and OPEX leveraga (Rand private investment per Rand public investment) | G11: =G9/D16 -> 0.1897927056
C13: Incentives provided | D13: =Calculations!W88 -> 0
C14: Operational shortfall | D14: =-Calculations!V84 -> 1648178483 | F14: Job creation
F15: Permanent jobs created by tenants (direct) over 20 years | G15: =Calculations!J13 -> 2025
C16: Total funding requirement | D16: =SUM(D10:D14) -> 3556511816 | F16: Total public cost / job (Rands) over 20 years | G16: =(D16)/G15 -> 1756302.131
F17: Average annual public cost / job (Rands) | G17: =G16/20 -> 87815.10656
C18: IDZ details
C19: Total IDZ space (gross sqm) | D19: =Calculations!G6 -> 13333333.33 | F19: Exports
C20: Total lettable space (sqm) | D20: =Calculations!D6 -> 8000000 | F20: Average annual exports generated (Rands) | G20: =Calculations!W87/20 -> 3120000
C21: Total space leased (sqm) | D21: =Calculations!E13 -> 145000

Sheet Scenario analysis
B7: Gross IDZ size | C7: =F231 -> 10010600
B8: Total lettable area at year 5 | C8: =F232 -> 740000
B9: Total area leased at year 5 | C9: =F233 -> 540000
B10: Area available for leasing | C10: =C8-C9 -> 200000
B12: % of remaining lettable area leased by Year 20 | C12: 1
B13: Total area leased at year 20 | C13: =U285 -> 740000
B15: Key assumptions for Years 6 - 20
B16: Average level of cofunding by IDZ | C16: =IF(ISERR(1/(1+R282)),0,1/(1+R282)) -> 0.5
B17: Jobs created per R1 million private investment | C17: =IF(ISERR(Q282),0,Q282) -> 3
C23: Scenario
C24: Baseline | D24: Operational breakeven
B25: Public funding (over 20 year period)
B26: Total CAPEX investment (including investor cofunding) | C26: =U278 -> 1091123000 | D26: =C26 -> 1091123000
B27: Operational funding (shortfall) | C27: =U279 -> 886577909.3 | D27: =IF(B403="Operational breakeven through increase in income",$V$279,IF(B403="Operational breakeven through reduction in OPEX",$W$279,0)) -> 728262753
B28: Total public funding | C28: =C26+C27 -> 1977700909 | D28: =D26+D27 -> 1819385753
B30: Private investment (total over 20 year period) | C30: =U280 -> 1700000000 | D30: =C30 -> 1700000000
B32: Investment leverage
B33: CAPEX (Rand of private investment per Rand public investment) | C33: =C30/C26 -> 1.55802783 | D33: =D30/D26 -> 1.55802783
B34: CAPEX and Operational (Rand of private investment per Rand public investment) | C34: =C30/C28 -> 0.8595839705 | D34: =D30/D28 -> 0.9343812862
B36: Job creation and operations
B37: Job creation (permanent direct jobs created by investors over 20 year period) | C37: =U281 -> 2880 | D37: =C37 -> 2880
B38: Average annual public cost per job created (average over 20 years) | C38: =(C26+C27)/C37/20 -> 34335.08523 | D38: =(D26+D27)/D37/20 -> 31586.55821
B39: Total public cost per job created (over 20 years) | C39: =C38*20 -> 686701.7046 | D39: =D38*20 -> 631731.1642
B41: Average rental and service rate (R/sqm) for land leased from Year 5 | C41: =U283 -> 100 | D41: =IF(B403="Operational breakeven through increase in income",$V$283,IF(B403="Operational breakeven through reduction in OPEX",$U$283,0)) -> 198.9469727
B42: =IF(B403="Operational breakeven through increase in income","",IF(B403="Operational breakeven through reduction in OPEX","Reduction in OPEX required at year 20","")) ->  | D42: =IF(B403="Operational breakeven through increase in income","",IF(B403="Operational breakeven through reduction in OPEX",$W$284,"")) -> 
A44: Cumulative CAPEX investment
A69: Baseline - OPEX by classification
A95: Annual rental and service income
A121: Annual OPEX
A147: Annual Operating Profit
S230: Baseline | T230: Breakeven through rental | U230: Breakeven through opex
B231: Richards Bay | E231: Gross IDZ size | F231: 10010600 | H231: Actual number of tenants on IDZ | I231: Actual tenants | J231: Actual average size (sqm) | K231: Total area leased (sqm) | L231: Tenant investment | M231: IDZ investment | N231: Total investment | O231: Rental income | P231: Jobs created | R231: Total public CAPEX investment | S231: 1091123000 | T231: 1091123000 | U231: 1091123000
B232: Funding received to date | E232: Bulk infrastructure added | F232: 740000 | H232: Anchor | I232: 0 | J232: 500000 | K232: 0 | L232: 0 | M232: 0 | N232: 0 | O232: 0 | P232: 0 | R232: Total public Operational funding | S232: 886577909.3 | T232: 728262753 | U232: 728600360
B233: DTI | C233: 191123000 | E233: Total area leased | F233: 540000 | H233: Medium | I233: 4 | J233: 25000 | K233: 100000 | L233: 400000000 | M233: 400000000 | N233: 800000000 | O233: 10000000 | P233: 1200 | R233: Total private investment | S233: 1700000000 | T233: 1700000000 | U233: 1700000000
B234: Provincial | C234: 345979000 | E234: Total direct jobs created | F234: 180 | H234: Small | I234: 20 | J234: 5000 | K234: 100000 | L234: 500000000 | M234: 500000000 | N234: 1000000000 | O234: 10000000 | P234: 1500 | R234: Total jobs created | S234: 2880 | T234: 2880 | U234: 2880
B235: Private investment | C235: 800000000 | H235: Total | K235: 200000 | L235: 900000000 | M235: 900000000 | N235: 1800000000 | O235: 20000000 | P235: 2700 | R235: Annual public funding per job | S235: 34335.08523 | T235: 31586.55821 | U235: 31592.41944
R236: Rental and service rate (R/sqm) | S236: 27.02702703 | T236: 53.76945208
R237: OPEX reduction by year 20 | U237: -0.4973534975
B239: Actual | G239: Forecast
B240: 1 | C240: 2 | D240: 3 | E240: 4 | F240: 5 | G240: 6 | H240: 7 | I240: 8 | J240: 9 | K240: 10 | L240: 11 | M240: 12 | N240: 13 | O240: 14 | P240: 15 | Q240: 16 | R240: 17 | S240: 18 | T240: 19 | U240: 20 | V240: Total
A241: Staff costs | B241: 3815643 | C241: 4768149 | D241: 12659122 | E241: 19163358 | F241: 19921643 | G241: 19946237.62 | H241: 19970832.24 | I241: 19995426.86 | J241: 20020021.48 | K241: 20044616.1 | L241: 20069210.73 | M241: 20093805.35 | N241: 20118399.97 | O241: 20142994.59 | P241: 20167589.21 | Q241: 20192183.83 | R241: 20216778.45 | S241: 20241373.07 | T241: 20265967.69 | U241: 20290562.31 | V241: 362103914.5
A242: Travel and accommodation | B242: 193918 | C242: 0 | D242: 815689 | E242: 1658532 | F242: 1681281 | G242: 1683356.656 | H242: 1685432.311 | I242: 1687507.967 | J242: 1689583.622 | K242: 1691659.278 | L242: 1693734.933 | M242: 1695810.589 | N242: 1697886.244 | O242: 1699961.9 | P242: 1702037.556 | Q242: 1704113.211 | R242: 1706188.867 | S242: 1708264.522 | T242: 1710340.178 | U242: 1712415.833 | V242: 29817713.67
A243: Marketing | B243: 176213 | C243: 565794 | D243: 346550 | E243: 767775 | F243: 1112064 | G243: 1113436.919 | H243: 1114809.837 | I243: 1116182.756 | J243: 1117555.674 | K243: 1118928.593 | L243: 1120301.511 | M243: 1121674.43 | N243: 1123047.348 | O243: 1124420.267 | P243: 1125793.185 | Q243: 1127166.104 | R243: 1128539.022 | S243: 1129911.941 | T243: 1131284.859 | U243: 1132657.778 | V243: 19814106.22
A244: Property rates | B244: 0 | C244: 724442 | D244: 1357632 | E244: 1529683 | F244: 1732316 | G244: 1734454.662 | H244: 1736593.323 | I244: 1738731.985 | J244: 1740870.647 | K244: 1743009.309 | L244: 1745147.97 | M244: 1747286.632 | N244: 1749425.294 | O244: 1751563.956 | P244: 1753702.617 | Q244: 1755841.279 | R244: 1757979.941 | S244: 1760118.602 | T244: 1762257.264 | U244: 1764395.926 | V244: 31585452.41
A245: Professional fees | B245: 437358 | C245: 2626267 | D245: 2003286 | E245: 1052396 | F245: 8294716 | G245: 8304956.39 | H245: 8315196.78 | I245: 8325437.17 | J245: 8335677.56 | K245: 8345917.951 | L245: 8356158.341 | M245: 8366398.731 | N245: 8376639.121 | O245: 8386879.511 | P245: 8397119.901 | Q245: 8407360.291 | R245: 8417600.681 | S245: 8427841.072 | T245: 8438081.462 | U245: 8448321.852 | V245: 140063609.8
A246: Other operating expenses | B246: 3636834 | C246: 1447904 | D246: 4097558 | E246: 5912042 | F246: 6323931 | G246: 6331738.322 | H246: 6339545.644 | I246: 6347352.967 | J246: 6355160.289 | K246: 6362967.611 | L246: 6370774.933 | M246: 6378582.256 | N246: 6386389.578 | O246: 6394196.9 | P246: 6402004.222 | Q246: 6409811.544 | R246: 6417618.867 | S246: 6425426.189 | T246: 6433233.511 | U246: 6441040.833 | V246: 117214112.7
A247: Total | B247: 8259966 | C247: 10132556 | D247: 21279837 | E247: 30083786 | F247: 39065951 | G247: 39114180.57 | H247: 39162410.14 | I247: 39210639.71 | J247: 39258869.28 | K247: 39307098.85 | L247: 39355328.41 | M247: 39403557.98 | N247: 39451787.55 | O247: 39500017.12 | P247: 39548246.69 | Q247: 39596476.26 | R247: 39644705.83 | S247: 39692935.4 | T247: 39741164.97 | U247: 39789394.54 | V247: 700598909.3
A249: Rental income | B249: 0 | C249: 0 | D249: 0 | E249: 0 | F249: 0 | G249: 1333333.333 | H249: 2666666.667 | I249: 4000000 | J249: 5333333.333 | K249: 6666666.667 | L249: 8000000 | M249: 9333333.333 | N249: 10666666.67 | O249: 12000000 | P249: 13333333.33 | Q249: 14666666.67 | R249: 16000000 | S249: 17333333.33 | T249: 18666666.67 | U249: 20000000 | V249: 160000000 | W249: 20000000
A251: Operating profit | B251: -8259966 | C251: -10132556 | D251: -21279837 | E251: -30083786 | F251: -39065951 | G251: -37780847.24 | H251: -36495743.47 | I251: -35210639.71 | J251: -33925535.94 | K251: -32640432.18 | L251: -31355328.41 | M251: -30070224.65 | N251: -28785120.89 | O251: -27500017.12 | P251: -26214913.36 | Q251: -24929809.59 | R251: -23644705.83 | S251: -22359602.07 | T251: -21074498.3 | U251: -19789394.54 | V251: -540598909.3
A252: Operational shortfall | B252: -8259966 | C252: -10132556 | D252: -21279837 | E252: -30083786 | F252: -39065951 | G252: -37780847.24 | H252: -36495743.47 | I252: -35210639.71 | J252: -33925535.94 | K252: -32640432.18 | L252: -31355328.41 | M252: -30070224.65 | N252: -28785120.89 | O252: -27500017.12 | P252: -26214913.36 | Q252: -24929809.59 | R252: -23644705.83 | S252: -22359602.07 | T252: -21074498.3 | U252: -19789394.54 | V252: -540598909.3
A254: Total private investment | G254: 60000000 | H254: 60000000 | I254: 60000000 | J254: 60000000 | K254: 60000000 | L254: 60000000 | M254: 60000000 | N254: 60000000 | O254: 60000000 | P254: 60000000 | Q254: 60000000 | R254: 60000000 | S254: 60000000 | T254: 60000000 | U254: 60000000 | V254: 900000000
A255: IDZ investment | G255: 60000000 | H255: 60000000 | I255: 60000000 | J255: 60000000 | K255: 60000000 | L255: 60000000 | M255: 60000000 | N255: 60000000 | O255: 60000000 | P255: 60000000 | Q255: 60000000 | R255: 60000000 | S255: 60000000 | T255: 60000000 | U255: 60000000 | V255: 900000000
F257: Actual | G257: Forecast
F258: 5 | G258: 6 | H258: 7 | I258: 8 | J258: 9 | K258: 10 | L258: 11 | M258: 12 | N258: 13 | O258: 14 | P258: 15 | Q258: 16 | R258: 17 | S258: 18 | T258: 19 | U258: 20
A259: Cumulative private investment | F259: 800000000 | G259: 860000000 | H259: 920000000 | I259: 980000000 | J259: 1040000000 | K259: 1100000000 | L259: 1160000000 | M259: 1220000000 | N259: 1280000000 | O259: 1340000000 | P259: 1400000000 | Q259: 1460000000 | R259: 1520000000 | S259: 1580000000 | T259: 1640000000 | U259: 1700000000
A260: Cumulative IDZ CAPEX investment | F260: 191123000 | G260: 251123000 | H260: 311123000 | I260: 371123000 | J260: 431123000 | K260: 491123000 | L260: 551123000 | M260: 611123000 | N260: 671123000 | O260: 731123000 | P260: 791123000 | Q260: 851123000 | R260: 911123000 | S260: 971123000 | T260: 1031123000 | U260: 1091123000
A262: Operational break even by increasing rental income
A263: Rental income | B263: 0 | C263: 0 | D263: 0 | E263: 0 | F263: 0 | G263: 2652626.302 | H263: 5305252.605 | I263: 7957878.907 | J263: 10610505.21 | K263: 13263131.51 | L263: 15915757.81 | M263: 18568384.12 | N263: 21221010.42 | O263: 23873636.72 | P263: 26526263.02 | Q263: 29178889.33 | R263: 31831515.63 | S263: 34484141.93 | T263: 37136768.23 | U263: 39789394.54 | V263: 318315156.3 | W263: 39789394.54
A264: Operational profit | B264: -8259966 | C264: -10132556 | D264: -21279837 | E264: -30083786 | F264: -39065951 | G264: -36461554.27 | H264: -33857157.53 | I264: -31252760.8 | J264: -28648364.07 | K264: -26043967.33 | L264: -23439570.6 | M264: -20835173.87 | N264: -18230777.13 | O264: -15626380.4 | P264: -13021983.67 | Q264: -10417586.93 | R264: -7813190.2 | S264: -5208793.467 | T264: -2604396.733 | U264: 0 | V264: -382283753
A265: Operational shortfall | B265: -8259966 | C265: -10132556 | D265: -21279837 | E265: -30083786 | F265: -39065951 | G265: -36461554.27 | H265: -33857157.53 | I265: -31252760.8 | J265: -28648364.07 | K265: -26043967.33 | L265: -23439570.6 | M265: -20835173.87 | N265: -18230777.13 | O265: -15626380.4 | P265: -13021983.67 | Q265: -10417586.93 | R265: -7813190.2 | S265: -5208793.467 | T265: -2604396.733 | U265: 0 | V265: -382283753
A267: Operational break even by reducing operating expenditure
A268: Operating expenditure | B268: 8259966 | C268: 10132556 | D268: 21279837 | E268: 30083786 | F268: 39065951 | G268: 37839901.86 | H268: 36565623.16 | I268: 35291344.46 | J268: 34017065.75 | K268: 32742787.05 | L268: 31468508.34 | M268: 30194229.64 | N268: 28919950.93 | O268: 27645672.23 | P268: 26371393.52 | Q268: 25097114.82 | R268: 23822836.11 | S268: 22548557.41 | T268: 21274278.7 | U268: 20000000 | V268: 542621360
A269: Operational profit | B269: -8259966 | C269: -10132556 | D269: -21279837 | E269: -30083786 | F269: -39065951 | G269: -36506568.53 | H269: -33898956.49 | I269: -31291344.46 | J269: -28683732.42 | K269: -26076120.38 | L269: -23468508.34 | M269: -20860896.3 | N269: -18253284.27 | O269: -15645672.23 | P269: -13038060.19 | Q269: -10430448.15 | R269: -7822836.114 | S269: -5215224.076 | T269: -2607612.038 | U269: 0 | V269: -382621360
A270: Operational shortfall | B270: -8259966 | C270: -10132556 | D270: -21279837 | E270: -30083786 | F270: -39065951 | G270: -36506568.53 | H270: -33898956.49 | I270: -31291344.46 | J270: -28683732.42 | K270: -26076120.38 | L270: -23468508.34 | M270: -20860896.3 | N270: -18253284.27 | O270: -15645672.23 | P270: -13038060.19 | Q270: -10430448.15 | R270: -7822836.114 | S270: -5215224.076 | T270: -2607612.038 | U270: 0 | V270: -382621360
U277: Baseline | V277: Breakeven through rental | W277: Breakeven through opex
B278: Coega | E278: Gross IDZ size | F278: =F231 -> 10010600 | H278: Actual number of tenants on IDZ | I278: Actual tenants | J278: Actual average size (sqm) | K278: Total area leased (sqm) | L278: Tenant investment | M278: IDZ investment | N278: Total investment | O278: Rental income | P278: Jobs created | Q278: Investment / job | R278: Cofunding % | T278: Total public CAPEX investment | U278: =C280+M282 -> 1091123000 | V278: =U278 -> 1091123000 | W278: =V278 -> 1091123000
B279: Funding received to date | E279: Bulk infrastructure added | F279: =F232 -> 740000 | H279: Anchor | I279: =I232 -> 0 | J279: =J232 -> 500000 | K279: =K232*$C$12 -> 0 | L279: 0 | M279: 0 | N279: 0 | O279: 0 | P279: 0 | Q279: =P232/L232*1000000 ->  | R279: =L279/M279 ->  | T279: Total public Operational funding | U279: =C281-V299 -> 886577909.3 | V279: =C281-V312 -> 728262753 | W279: =C281-V317 -> 728262753
B280: DTI | C280: =C233 -> 191123000 | E280: Total area leased | F280: 540000 | H280: Medium | I280: =I233 -> 4 | J280: 25000 | K280: 100000 | L280: 400000000 | M280: 400000000 | N280: 800000000 | O280: 10000000 | P280: 1200 | Q280: =P233/L233*1000000 -> 3 | R280: 1 | T280: Total private investment | U280: =L282+C282 -> 1700000000 | V280: =U280 -> 1700000000 | W280: =U280 -> 1700000000
B281: Provincial | C281: =C234 -> 345979000 | E281: Total direct jobs created | F281: 180 | H281: Small | I281: =I234 -> 20 | J281: 5000 | K281: 100000 | L281: 500000000 | M281: 500000000 | N281: 1000000000 | O281: 10000000 | P281: 1500 | Q281: 3 | R281: 1 | T281: Total jobs created | U281: =P282+F281 -> 2880 | V281: =F281+P282 -> 2880 | W281: =F281+P282 -> 2880
B282: Private investment | C282: 800000000 | E282: Rental income / sqm | F282: =F249/F233 -> 0 | H282: Total | K282: =SUM(K279:K281) -> 200000 | L282: 900000000 | M282: 900000000 | N282: 1800000000 | O282: 20000000 | P282: =SUM(P279:P281) -> 2700 | Q282: =P282/L282*1000000 -> 3 | R282: =L282/M282 -> 1 | T282: Annual public funding per job | U282: =(U278+U279)/U281/20 -> 34335.08523 | V282: =(V278+V279)/V281/20 -> 31586.55821 | W282: 31586.55821
E283: Current leased area | F283: =F233/F232 -> 0.7297297297 | T283: Rental and service rate (R/sqm) | U283: =IF(ISERR((U296-F296)/K282),0,(U296-F296)/K282) -> 100 | V283: =IF(ISERR((U310-F310)/K282),0,(U310-F310)/K282) -> 198.9469727
T284: OPEX reduction by year 20 | W284: =U315/U294-1 -> -0.4973534975
T285: Total area leased | U285: =K282+F280 -> 740000 | V285: =K282+F280 -> 740000 | W285: =K282+F280 -> 740000
B286: Actual | G286: Forecast
B287: 1 | C287: 2 | D287: 3 | E287: 4 | F287: 5 | G287: 6 | H287: 7 | I287: 8 | J287: 9 | K287: 10 | L287: 11 | M287: 12 | N287: 13 | O287: 14 | P287: 15 | Q287: 16 | R287: 17 | S287: 18 | T287: 19 | U287: 20 | V287: Total
A288: Staff costs | B288: =B241 -> 3815643 | C288: =C241 -> 4768149 | D288: 12659122 | E288: 19163358 | F288: 19921643 | G288: =F241+(G241-F241)*$C$12 -> 19946237.62 | H288: =G288+(H241-G241)*$C$12 -> 19970832.24 | I288: 19995426.86 | J288: 20020021.48 | K288: 20044616.1 | L288: 20069210.73 | M288: 20093805.35 | N288: 20118399.97 | O288: 20142994.59 | P288: 20167589.21 | Q288: 20192183.83 | R288: 20216778.45 | S288: 20241373.07 | T288: 20265967.69 | U288: 20290562.31 | V288: =SUM(B288:U288) -> 362103914.5
A289: Travel and accommodation | B289: =B242 -> 193918 | C289: 0 | D289: 815689 | E289: 1658532 | F289: 1681281 | G289: 1683356.656 | H289: =G289+(H242-G242)*$C$12 -> 1685432.311 | I289: 1687507.967 | J289: 1689583.622 | K289: 1691659.278 | L289: 1693734.933 | M289: 1695810.589 | N289: 1697886.244 | O289: 1699961.9 | P289: 1702037.556 | Q289: 1704113.211 | R289: 1706188.867 | S289: 1708264.522 | T289: 1710340.178 | U289: 1712415.833 | V289: =SUM(B289:U289) -> 29817713.67
A290: Marketing | B290: =B243 -> 176213 | C290: 565794 | D290: 346550 | E290: 767775 | F290: 1112064 | G290: 1113436.919 | H290: =G290+(H243-G243)*$C$12 -> 1114809.837 | I290: 1116182.756 | J290: 1117555.674 | K290: 1118928.593 | L290: 1120301.511 | M290: 1121674.43 | N290: 1123047.348 | O290: 1124420.267 | P290: 1125793.185 | Q290: 1127166.104 | R290: 1128539.022 | S290: 1129911.941 | T290: 1131284.859 | U290: 1132657.778 | V290: =SUM(B290:U290) -> 19814106.22
A291: Property rates | B291: =B244 -> 0 | C291: 724442 | D291: 1357632 | E291: 1529683 | F291: 1732316 | G291: 1734454.662 | H291: =G291+(H244-G244)*$C$12 -> 1736593.323 | I291: 1738731.985 | J291: 1740870.647 | K291: 1743009.309 | L291: 1745147.97 | M291: 1747286.632 | N291: 1749425.294 | O291: 1751563.956 | P291: 1753702.617 | Q291: 1755841.279 | R291: 1757979.941 | S291: 1760118.602 | T291: 1762257.264 | U291: 1764395.926 | V291: 31585452.41
A292: Professional fees | B292: =B245 -> 437358 | C292: 2626267 | D292: 2003286 | E292: 1052396 | F292: 8294716 | G292: 8304956.39 | H292: =G292+(H245-G245)*$C$12 -> 8315196.78 | I292: 8325437.17 | J292: 8335677.56 | K292: 8345917.951 | L292: 8356158.341 | M292: 8366398.731 | N292: 8376639.121 | O292: 8386879.511 | P292: 8397119.901 | Q292: 8407360.291 | R292: 8417600.681 | S292: 8427841.072 | T292: 8438081.462 | U292: 8448321.852 | V292: 140063609.8
A293: Other operating expenses | B293: =B246 -> 3636834 | C293: 1447904 | D293: 4097558 | E293: 5912042 | F293: 6323931 | G293: 6331738.322 | H293: =G293+(H246-G246)*$C$12 -> 6339545.644 | I293: 6347352.967 | J293: 6355160.289 | K293: 6362967.611 | L293: 6370774.933 | M293: 6378582.256 | N293: 6386389.578 | O293: 6394196.9 | P293: 6402004.222 | Q293: 6409811.544 | R293: 6417618.867 | S293: 6425426.189 | T293: 6433233.511 | U293: 6441040.833 | V293: 117214112.7
A294: Total | B294: =B247 -> 8259966 | C294: 10132556 | D294: 21279837 | E294: 30083786 | F294: 39065951 | G294: 39114180.57 | H294: =G294+(H247-G247)*$C$12 -> 39162410.14 | I294: 39210639.71 | J294: 39258869.28 | K294: 39307098.85 | L294: 39355328.41 | M294: 39403557.98 | N294: 39451787.55 | O294: 39500017.12 | P294: 39548246.69 | Q294: 39596476.26 | R294: 39644705.83 | S294: 39692935.4 | T294: 39741164.97 | U294: 39789394.54 | V294: 700598909.3
A296: Rental income | B296: =B249 -> 0 | C296: 0 | D296: 0 | E296: 0 | F296: 0 | G296: =F249+(G249-F249)*$C$12 -> 1333333.333 | H296: =G296+(H249-G249)*$C$12 -> 2666666.667 | I296: 4000000 | J296: 5333333.333 | K296: 6666666.667 | L296: 8000000 | M296: 9333333.333 | N296: 10666666.67 | O296: 12000000 | P296: 13333333.33 | Q296: 14666666.67 | R296: 16000000 | S296: 17333333.33 | T296: 18666666.67 | U296: 20000000 | V296: 160000000 | W296: 700000000
A298: Operating profit | B298: =B251 -> -8259966 | C298: -10132556 | D298: -21279837 | E298: -30083786 | F298: -39065951 | G298: =G296-G294 -> -37780847.24 | H298: =H296-H294 -> -36495743.47 | I298: -35210639.71 | J298: -33925535.94 | K298: -32640432.18 | L298: -31355328.41 | M298: -30070224.65 | N298: -28785120.89 | O298: -27500017.12 | P298: -26214913.36 | Q298: -24929809.59 | R298: -23644705.83 | S298: -22359602.07 | T298: -21074498.3 | U298: -19789394.54 | V298: -540598909.3
A299: Operational shortfall | B299: =B252 -> -8259966 | C299: -10132556 | D299: -21279837 | E299: -30083786 | F299: -39065951 | G299: =IF(G298<0,G298,0) -> -37780847.24 | H299: =IF(H298<0,H298,0) -> -36495743.47 | I299: -35210639.71 | J299: -33925535.94 | K299: -32640432.18 | L299: -31355328.41 | M299: -30070224.65 | N299: -28785120.89 | O299: -27500017.12 | P299: -26214913.36 | Q299: -24929809.59 | R299: -23644705.83 | S299: -22359602.07 | T299: -21074498.3 | U299: -19789394.54 | V299: -540598909.3
A301: Total private investment | F301: =C235 -> 800000000 | G301: =$L$282/15 -> 60000000 | H301: =$L$282/15 -> 60000000 | I301: 60000000 | J301: 60000000 | K301: 60000000 | L301: 60000000 | M301: 60000000 | N301: 60000000 | O301: 60000000 | P301: 60000000 | Q301: 60000000 | R301: 60000000 | S301: 60000000 | T301: 60000000 | U301: 60000000 | V301: 1700000000
A302: IDZ investment | F302: =C233 -> 191123000 | G302: =$M$282/15 -> 60000000 | H302: =$M$282/15 -> 60000000 | I302: 60000000 | J302: 60000000 | K302: 60000000 | L302: 60000000 | M302: 60000000 | N302: 60000000 | O302: 60000000 | P302: 60000000 | Q302: 60000000 | R302: 60000000 | S302: 60000000 | T302: 60000000 | U302: 60000000 | V302: 1091123000
F304: Actual | G304: Forecast
F305: 5 | G305: 6 | H305: 7 | I305: 8 | J305: 9 | K305: 10 | L305: 11 | M305: 12 | N305: 13 | O305: 14 | P305: 15 | Q305: 16 | R305: 17 | S305: 18 | T305: 19 | U305: 20
A306: Cumulative private investment | F306: =F301 -> 800000000 | G306: =F306+G301 -> 860000000 | H306: =G306+H301 -> 920000000 | I306: 980000000 | J306: 1040000000 | K306: 1100000000 | L306: 1160000000 | M306: 1220000000 | N306: 1280000000 | O306: 1340000000 | P306: 1400000000 | Q306: 1460000000 | R306: 1520000000 | S306: 1580000000 | T306: 1640000000 | U306: 1700000000
A307: Cumulative IDZ CAPEX investment | F307: =F302 -> 191123000 | G307: =G302+F307 -> 251123000 | H307: =H302+G307 -> 311123000 | I307: 371123000 | J307: 431123000 | K307: 491123000 | L307: 551123000 | M307: 611123000 | N307: 671123000 | O307: 731123000 | P307: 791123000 | Q307: 851123000 | R307: 911123000 | S307: 971123000 | T307: 1031123000 | U307: 1091123000
A309: Operational break even by increasing rental income
A310: Rental income | B310: =B296 -> 0 | C310: =C296 -> 0 | D310: 0 | E310: 0 | F310: 0 | G310: =(($U$294-$F$310)/15)*B287+$F$310 -> 2652626.302 | H310: =(($U$294-$F$310)/15)*C287+$F$310 -> 5305252.605 | I310: 7957878.907 | J310: 10610505.21 | K310: 13263131.51 | L310: 15915757.81 | M310: 18568384.12 | N310: 21221010.42 | O310: 23873636.72 | P310: 26526263.02 | Q310: 29178889.33 | R310: 31831515.63 | S310: 34484141.93 | T310: 37136768.23 | U310: 39789394.54 | V310: =SUM(B310:U310) -> 318315156.3 | W310: 1153698000
A311: Operational profit | B311: =B310-B294 -> -8259966 | C311: =C310-C294 -> -10132556 | D311: -21279837 | E311: -30083786 | F311: -39065951 | G311: -36461554.27 | H311: -33857157.53 | I311: -31252760.8 | J311: -28648364.07 | K311: -26043967.33 | L311: -23439570.6 | M311: -20835173.87 | N311: -18230777.13 | O311: -15626380.4 | P311: -13021983.67 | Q311: -10417586.93 | R311: -7813190.2 | S311: -5208793.467 | T311: -2604396.733 | U311: 0 | V311: =SUM(B311:U311) -> -382283753
A312: Operational shortfall | B312: =IF(B311<0,B311,0) -> -8259966 | C312: =IF(C311<0,C311,0) -> -10132556 | D312: -21279837 | E312: -30083786 | F312: -39065951 | G312: -36461554.27 | H312: -33857157.53 | I312: -31252760.8 | J312: -28648364.07 | K312: -26043967.33 | L312: -23439570.6 | M312: -20835173.87 | N312: -18230777.13 | O312: -15626380.4 | P312: -13021983.67 | Q312: -10417586.93 | R312: -7813190.2 | S312: -5208793.467 | T312: -2604396.733 | U312: 0 | V312: =SUM(B312:U312) -> -382283753
A314: Operational break even by reducing operating expenditure
A315: Operating expenditure | B315: =B294 -> 8259966 | C315: =C294 -> 10132556 | D315: 21279837 | E315: 30083786 | F315: 39065951 | G315: =(($U$296-$F$315)/15)*B287+$F$315 -> 37794887.6 | H315: =(($U$296-$F$315)/15)*C287+$F$315 -> 36523824.2 | I315: 35252760.8 | J315: 33981697.4 | K315: 32710634 | L315: 31439570.6 | M315: 30168507.2 | N315: 28897443.8 | O315: 27626380.4 | P315: 26355317 | Q315: 25084253.6 | R315: 23813190.2 | S315: 22542126.8 | T315: 21271063.4 | U315: 20000000 | V315: =SUM(B315:U315) -> 542283753
A316: Operational profit | B316: =B296-B315 -> -8259966 | C316: =C296-C315 -> -10132556 | D316: -21279837 | E316: -30083786 | F316: -39065951 | G316: -36461554.27 | H316: -33857157.53 | I316: -31252760.8 | J316: -28648364.07 | K316: -26043967.33 | L316: -23439570.6 | M316: -20835173.87 | N316: -18230777.13 | O316: -15626380.4 | P316: -13021983.67 | Q316: -10417586.93 | R316: -7813190.2 | S316: -5208793.467 | T316: -2604396.733 | U316: 0 | V316: =SUM(B316:U316) -> -382283753
A317: Operational shortfall | B317: =IF(B316<0,B316,0) -> -8259966 | C317: =IF(C316<0,C316,0) -> -10132556 | D317: -21279837 | E317: -30083786 | F317: -39065951 | G317: -36461554.27 | H317: -33857157.53 | I317: -31252760.8 | J317: -28648364.07 | K317: -26043967.33 | L317: -23439570.6 | M317: -20835173.87 | N317: -18230777.13 | O317: -15626380.4 | P317: -13021983.67 | Q317: -10417586.93 | R317: -7813190.2 | S317: -5208793.467 | T317: -2604396.733 | U317: 0 | V317: =SUM(B317:U317) -> -382283753
A320: Rental income
A321: Baseline | B321: =B296 -> 0 | C321: =C296 -> 0 | D321: 0 | E321: 0 | F321: 0 | G321: 1333333.333 | H321: 2666666.667 | I321: 4000000 | J321: 5333333.333 | K321: 6666666.667 | L321: 8000000 | M321: 9333333.333 | N321: 10666666.67 | O321: 12000000 | P321: 13333333.33 | Q321: 14666666.67 | R321: 16000000 | S321: 17333333.33 | T321: 18666666.67 | U321: 20000000 | V321: =SUM(B321:U321) -> 160000000
A322: Breakeven by year 20 | B322: =IF($B$403="Operational breakeven through increase in income",B310,IF($B$403="Operational breakeven through reduction in OPEX",B321,"")) -> 0 | C322: =IF($B$403="Operational breakeven through increase in income",C310,IF($B$403="Operational breakeven through reduction in OPEX",C321,"")) -> 0 | D322: 0 | E322: 0 | F322: 0 | G322: 2652626.302 | H322: 5305252.605 | I322: 7957878.907 | J322: 10610505.21 | K322: 13263131.51 | L322: 15915757.81 | M322: 18568384.12 | N322: 21221010.42 | O322: 23873636.72 | P322: 26526263.02 | Q322: 29178889.33 | R322: 31831515.63 | S322: 34484141.93 | T322: 37136768.23 | U322: 39789394.54 | V322: =SUM(B322:U322) -> 318315156.3
A324: OPEX
A325: Baseline | B325: =B294 -> 8259966 | C325: =C294 -> 10132556 | D325: 21279837 | E325: 30083786 | F325: 39065951 | G325: 39114180.57 | H325: 39162410.14 | I325: 39210639.71 | J325: 39258869.28 | K325: 39307098.85 | L325: 39355328.41 | M325: 39403557.98 | N325: 39451787.55 | O325: 39500017.12 | P325: 39548246.69 | Q325: 39596476.26 | R325: 39644705.83 | S325: 39692935.4 | T325: 39741164.97 | U325: 39789394.54 | V325: =SUM(B325:U325) -> 700598909.3
A326: Breakeven by year 20 | B326: =IF($B$403="Operational breakeven through increase in income",B325,IF($B$403="Operational breakeven through reduction in OPEX",B315,"")) -> 8259966 | C326: =IF($B$403="Operational breakeven through increase in income",C325,IF($B$403="Operational breakeven through reduction in OPEX",C315,"")) -> 10132556 | D326: 21279837 | E326: 30083786 | F326: 39065951 | G326: 39114180.57 | H326: 39162410.14 | I326: 39210639.71 | J326: 39258869.28 | K326: 39307098.85 | L326: 39355328.41 | M326: 39403557.98 | N326: 39451787.55 | O326: 39500017.12 | P326: 39548246.69 | Q326: 39596476.26 | R326: 39644705.83 | S326: 39692935.4 | T326: 39741164.97 | U326: 39789394.54 | V326: =SUM(B326:U326) -> 700598909.3
A328: Operating profit
A329: Baseline | B329: =B298 -> -8259966 | C329: =C298 -> -10132556 | D329: -21279837 | E329: -30083786 | F329: -39065951 | G329: -37780847.24 | H329: -36495743.47 | I329: -35210639.71 | J329: -33925535.94 | K329: -32640432.18 | L329: -31355328.41 | M329: -30070224.65 | N329: -28785120.89 | O329: -27500017.12 | P329: -26214913.36 | Q329: -24929809.59 | R329: -23644705.83 | S329: -22359602.07 | T329: -21074498.3 | U329: -19789394.54 | V329: =SUM(B329:U329) -> -540598909.3
A330: Breakeven by year 20 | B330: =IF($B$403="Operational breakeven through increase in income",B311,IF($B$403="Operational breakeven through reduction in OPEX",B316,"")) -> -8259966 | C330: =IF($B$403="Operational breakeven through increase in income",C311,IF($B$403="Operational breakeven through reduction in OPEX",C316,"")) -> -10132556 | D330: -21279837 | E330: -30083786 | F330: -39065951 | G330: -36461554.27 | H330: -33857157.53 | I330: -31252760.8 | J330: -28648364.07 | K330: -26043967.33 | L330: -23439570.6 | M330: -20835173.87 | N330: -18230777.13 | O330: -15626380.4 | P330: -13021983.67 | Q330: -10417586.93 | R330: -7813190.2 | S330: -5208793.467 | T330: -2604396.733 | U330: 0 | V330: =SUM(B330:U330) -> -382283753
B400: Breakeven | C400: IDZ
B401: Operational breakeven through increase in income | C401: Coega
B402: Operational breakeven through reduction in OPEX | C402: East London
B403: Operational breakeven through increase in income | C403: Richards Bay

Sheet Coega (hidden)
S1: Baseline | T1: Breakeven through rental | U1: Breakeven through opex
B2: Coega | E2: Gross IDZ size | F2: 111860000 | H2: Actual number of tenants on IDZ | I2: Actual tenants | J2: Actual average size (sqm) | K2: Total area leased (sqm) | L2: Tenant investment | M2: IDZ investment | N2: Total investment | O2: Rental income | P2: Jobs created | R2: Total public CAPEX investment | S2: =U31 -> 11864685000 | T2: =S2 -> 11864685000 | U2: =T2 -> 11864685000
B3: Funding received to date | E3: Bulk infrastructure added | F3: 7200000 | H3: Anchor | I3: 12 | J3: 500000 | K3: 6000000 | L3: 6000000000 | M3: 3000000000 | N3: 9000000000 | O3: 600000000 | P3: 18000 | R3: Total public Operational funding | S3: =-V23+C5 -> 8014377000 | T3: =-V36+C5 -> 3417821670 | U3: =-V41+C5 -> 5699768199
B4: DTI | C4: 4364685000 | E4: Total area leased | F4: 200000 | H4: Medium | I4: 20 | J4: 25000 | K4: 500000 | L4: 2000000000 | M4: 2000000000 | N4: 4000000000 | O4: 50000000 | P4: 6000 | R4: Total private investment | S4: =U30 -> 11783750000 | T4: =S4 -> 11783750000 | U4: =T4 -> 11783750000
B5: Provincial | C5: 1517776000 | E5: Total direct jobs created | F5: 3854 | H5: Small | I5: 100 | J5: 5000 | K5: 500000 | L5: 2500000000 | M5: 2500000000 | N5: 5000000000 | O5: 50000000 | P5: 7500 | R5: Total jobs created | S5: =P6+F5 -> 35354 | T5: =S5 -> 35354 | U5: =T5 -> 35354
B6: Private investment | C6: 1283750000 | H6: Total | K6: 7000000 | L6: 10500000000 | M6: 7500000000 | N6: 18000000000 | O6: 700000000 | P6: 31500 | R6: Annual public funding per job | S6: =((S2+S3)/S5)/20 -> 28114.3039 | T6: =((T2+T3)/T5)/20 -> 21613.5468 | U6: 24840.82876
R7: Rental and service rate (R/sqm) | S7: =U20/F3 -> 139.7820833 | T7: =U34/F3 -> 202.7956944
R8: OPEX reduction by year 20 | U8: =U39/U18-1 -> -0.3107246004
B10: Actual | G10: Forecast
B11: 1 | C11: 2 | D11: 3 | E11: 4 | F11: 5 | G11: 6 | H11: 7 | I11: 8 | J11: 9 | K11: 10 | L11: 11 | M11: 12 | N11: 13 | O11: 14 | P11: 15 | Q11: 16 | R11: 17 | S11: 18 | T11: 19 | U11: 20 | V11: Total
A12: Staff costs | B12: 90412000 | C12: 95238000 | D12: 102606000 | E12: 143975000 | F12: 141081053 | G12: 157540509.2 | H12: 173999965.4 | I12: 190459421.6 | J12: 206918877.7 | K12: 223378333.9 | L12: 239837790.1 | M12: 256297246.3 | N12: 272756702.5 | O12: 289216158.7 | P12: 305675614.8 | Q12: 322135071 | R12: 338594527.2 | S12: 355053983.4 | T12: 371513439.6 | U12: 387972895.8 | V12: =SUM(B12:U12) -> 4664662590
A13: Travel and accommodation | B13: 9248520 | C13: 13093980 | D13: 12004770 | E13: 11850150 | F13: 15928680 | G13: 17787026 | H13: 19645372 | I13: 21503718 | J13: 23362064 | K13: 25220410 | L13: 27078756 | M13: 28937102 | N13: 30795448 | O13: 32653794 | P13: 34512140 | Q13: 36370486 | R13: 38228832 | S13: 40087178 | T13: 41945524 | U13: 43803870 | V13: =SUM(B13:U13) -> 524057820
A14: Marketing | B14: 15414200 | C14: 21823300 | D14: 20007950 | E14: 19750250 | F14: 26547800 | G14: 29645043.33 | H14: 32742286.67 | I14: 35839530 | J14: 38936773.33 | K14: 42034016.67 | L14: 45131260 | M14: 48228503.33 | N14: 51325746.67 | O14: 54422990 | P14: 57520233.33 | Q14: 60617476.67 | R14: 63714720 | S14: 66811963.33 | T14: 69909206.67 | U14: 73006450 | V14: 873429700
A15: Property rates | B15: 6165680 | C15: 8729320 | D15: 8003180 | E15: 7900100 | F15: 10619120 | G15: 11858017.33 | H15: 13096914.67 | I15: 14335812 | J15: 15574709.33 | K15: 16813606.67 | L15: 18052504 | M15: 19291401.33 | N15: 20530298.67 | O15: 21769196 | P15: 23008093.33 | Q15: 24246990.67 | R15: 25485888 | S15: 26724785.33 | T15: 27963682.67 | U15: 29202580 | V15: 349371880
A16: Professional fees | B16: 30828400 | C16: 43646600 | D16: 40015900 | E16: 39500500 | F16: 53095600 | G16: 59290086.67 | H16: 65484573.33 | I16: 71679060 | J16: 77873546.67 | K16: 84068033.33 | L16: 90262520 | M16: 96457006.67 | N16: 102651493.3 | O16: 108845980 | P16: 115040466.7 | Q16: 121234953.3 | R16: 127429440 | S16: 133623926.7 | T16: 139818413.3 | U16: 146012900 | V16: 1746859400
A17: Other operating expenses | B17: 156215200 | C17: 253934800 | D17: 217521200 | E17: 172029000 | F17: 283683747 | G17: 316780184.2 | H17: 349876621.3 | I17: 382973058.5 | J17: 416069495.6 | K17: 449165932.8 | L17: 482262369.9 | M17: 515358807.1 | N17: 548455244.2 | O17: 581551681.4 | P17: 614648118.5 | Q17: 647744555.7 | R17: 680840992.8 | S17: 713937430 | T17: 747033867.1 | U17: 780130304.3 | V17: 9310212610
A18: Total | B18: 308284000 | C18: 436466000 | D18: 400159000 | E18: 395005000 | F18: 530956000 | G18: 592900866.7 | H18: 654845733.3 | I18: 716790600 | J18: 778735466.7 | K18: 840680333.3 | L18: 902625200 | M18: 964570066.7 | N18: 1026514933 | O18: 1088459800 | P18: 1150404667 | Q18: 1212349533 | R18: 1274294400 | S18: 1336239267 | T18: 1398184133 | U18: 1460129000 | V18: 17468594000
A20: Rental income | B20: 50674000 | C20: 70598000 | D20: 124714000 | E20: 223111000 | F20: 306431000 | G20: 353097666.7 | H20: 399764333.3 | I20: 446431000 | J20: 493097666.7 | K20: 539764333.3 | L20: 586431000 | M20: 633097666.7 | N20: 679764333.3 | O20: 726431000 | P20: 773097666.7 | Q20: 819764333.3 | R20: 866431000 | S20: 913097666.7 | T20: 959764333.3 | U20: 1006431000 | V20: =SUM(B20:U20) -> 10971993000 | W20: =U20-F20 -> 700000000
A22: Operating profit | B22: -257610000 | C22: -365868000 | D22: -275445000 | E22: -171894000 | F22: -224525000 | G22: -239803200 | H22: -255081400 | I22: -270359600 | J22: -285637800 | K22: -300916000 | L22: -316194200 | M22: -331472400 | N22: -346750600 | O22: -362028800 | P22: -377307000 | Q22: -392585200 | R22: -407863400 | S22: -423141600 | T22: -438419800 | U22: -453698000 | V22: =SUM(B22:U22) -> -6496601000
A23: Operational shortfall | B23: =IF(B22<0,B22,0) -> -257610000 | C23: =IF(C22<0,C22,0) -> -365868000 | D23: -275445000 | E23: -171894000 | F23: -224525000 | G23: -239803200 | H23: -255081400 | I23: -270359600 | J23: -285637800 | K23: -300916000 | L23: -316194200 | M23: -331472400 | N23: -346750600 | O23: -362028800 | P23: -377307000 | Q23: -392585200 | R23: -407863400 | S23: -423141600 | T23: -438419800 | U23: -453698000 | V23: =SUM(B23:U23) -> -6496601000
A25: Total private investment | F25: =C6 -> 1283750000 | G25: 700000000 | H25: 700000000 | I25: 700000000 | J25: 700000000 | K25: 700000000 | L25: 700000000 | M25: 700000000 | N25: 700000000 | O25: 700000000 | P25: 700000000 | Q25: 700000000 | R25: 700000000 | S25: 700000000 | T25: 700000000 | U25: 700000000 | V25: =SUM(B25:U25) -> 11783750000
A26: IDZ investment | F26: =C4 -> 4364685000 | G26: 500000000 | H26: 500000000 | I26: 500000000 | J26: 500000000 | K26: 500000000 | L26: 500000000 | M26: 500000000 | N26: 500000000 | O26: 500000000 | P26: 500000000 | Q26: 500000000 | R26: 500000000 | S26: 500000000 | T26: 500000000 | U26: 500000000 | V26: 11864685000
F28: Actual | G28: Forecast
F29: 5 | G29: 6 | H29: 7 | I29: 8 | J29: 9 | K29: 10 | L29: 11 | M29: 12 | N29: 13 | O29: 14 | P29: 15 | Q29: 16 | R29: 17 | S29: 18 | T29: 19 | U29: 20
A30: Cumulative private investment | F30: =C6 -> 1283750000 | G30: =G25+F30 -> 1983750000 | H30: 2683750000 | I30: 3383750000 | J30: 4083750000 | K30: 4783750000 | L30: 5483750000 | M30: 6183750000 | N30: 6883750000 | O30: 7583750000 | P30: 8283750000 | Q30: 8983750000 | R30: 9683750000 | S30: 10383750000 | T30: 11083750000 | U30: 11783750000
A31: Cumulative IDZ CAPEX investment | F31: =C4 -> 4364685000 | G31: =G26+F31 -> 4864685000 | H31: 5364685000 | I31: 5864685000 | J31: 6364685000 | K31: 6864685000 | L31: 7364685000 | M31: 7864685000 | N31: 8364685000 | O31: 8864685000 | P31: 9364685000 | Q31: 9864685000 | R31: 10364685000 | S31: 10864685000 | T31: 11364685000 | U31: 11864685000
A33: Operational break even by increasing rental income
A34: Rental income | B34: =B20 -> 50674000 | C34: =C20 -> 70598000 | D34: 124714000 | E34: 223111000 | F34: 306431000 | G34: 512273710.7 | H34: 579977659.9 | I34: 647681609.2 | J34: 715385558.4 | K34: 783089507.6 | L34: 850793456.9 | M34: 918497406.1 | N34: 986201355.3 | O34: 1053905305 | P34: 1121609254 | Q34: 1189313203 | R34: 1257017152 | S34: 1324721102 | T34: 1392425051 | U34: 1460129000 | V34: =SUM(B34:U34) -> 1.556854833e+10 | W34: =U34-F34 -> 1153698000
A35: Operational profit | B35: =B34-B18 -> -257610000 | C35: =C34-C18 -> -365868000 | D35: -275445000 | E35: -171894000 | F35: -224525000 | G35: -80627155.97 | H35: -74868073.4 | I35: -69108990.83 | J35: -63349908.26 | K35: -57590825.69 | L35: -51831743.12 | M35: -46072660.55 | N35: -40313577.98 | O35: -34554495.41 | P35: -28795412.85 | Q35: -23036330.28 | R35: -17277247.71 | S35: -11518165.14 | T35: -5759082.569 | U35: 0 | V35: =SUM(B35:U35) -> -1900045670
A36: Operational shortfall | B36: =IF(B35<0,B35,0) -> -257610000 | C36: =IF(C35<0,C35,0) -> -365868000 | D36: -275445000 | E36: -171894000 | F36: -224525000 | G36: -80627155.97 | H36: -74868073.4 | I36: -69108990.83 | J36: -63349908.26 | K36: -57590825.69 | L36: -51831743.12 | M36: -46072660.55 | N36: -40313577.98 | O36: -34554495.41 | P36: -28795412.85 | Q36: -23036330.28 | R36: -17277247.71 | S36: -11518165.14 | T36: -5759082.569 | U36: 0 | V36: =SUM(B36:U36) -> -1900045670
A38: Operational break even by reducing operating expenditure
A39: Operating expenditure | B39: =B18 -> 308284000 | C39: =C18 -> 436466000 | D39: 400159000 | E39: 395005000 | F39: 530956000 | G39: 737984359.9 | H39: 757159119.9 | I39: 776333879.9 | J39: 795508639.9 | K39: 814683399.9 | L39: 833858159.9 | M39: 853032919.9 | N39: 872207679.9 | O39: 891382440 | P39: 910557200 | Q39: 929731960 | R39: 948906720 | S39: 968081480 | T39: 987256240 | U39: 1006431000 | V39: =SUM(B39:U39) -> 1.51539852e+10
A40: Operational profit | B40: =B20-B39 -> -257610000 | C40: =C20-C39 -> -365868000 | D40: -275445000 | E40: -171894000 | F40: -224525000 | G40: -384886693.2 | H40: -357394786.6 | I40: -329902879.9 | J40: -302410973.3 | K40: -274919066.6 | L40: -247427159.9 | M40: -219935253.3 | N40: -192443346.6 | O40: -164951440 | P40: -137459533.3 | Q40: -109967626.6 | R40: -82475719.98 | S40: -54983813.32 | T40: -27491906.66 | U40: 0 | V40: =SUM(B40:U40) -> -4181992199
A41: Operational shortfall | B41: =IF(B40<0,B40,0) -> -257610000 | C41: -365868000 | D41: -275445000 | E41: -171894000 | F41: -224525000 | G41: -384886693.2 | H41: -357394786.6 | I41: -329902879.9 | J41: -302410973.3 | K41: -274919066.6 | L41: -247427159.9 | M41: -219935253.3 | N41: -192443346.6 | O41: -164951440 | P41: -137459533.3 | Q41: -109967626.6 | R41: -82475719.98 | S41: -54983813.32 | T41: -27491906.66 | U41: 0 | V41: =SUM(B41:U41) -> -4181992199

Sheet East London (hidden)
S1: Baseline | T1: Breakeven through rental | U1: Breakeven through opex
B2: East London | E2: Gross IDZ size | F2: 15000000 | H2: Actual number of tenants on IDZ | I2: Actual tenants | J2: Actual average size (sqm) | K2: Total area leased (sqm) | L2: Tenant investment | M2: IDZ investment | N2: Total investment | O2: Rental income | P2: Jobs created | R2: Total public CAPEX investment | S2: =U31 -> 4515729000 | T2: =S2 -> 4515729000 | U2: =T2 -> 4515729000
B3: Funding received to date | E3: Bulk infrastructure added | F3: 4400000 | H3: Anchor | I3: 8 | J3: 500000 | K3: 4000000 | L3: 4000000000 | M3: 2000000000 | N3: 6000000000 | O3: 400000000 | P3: 12000 | R3: Total public Operational funding | S3: =-V23+C5 -> 2744831243 | T3: =-V36+C5 -> 2919028419 | U3: =-V41+C5 -> 3168047752
B4: DTI | C4: 1453184000 | E4: Total area leased | F4: 137491 | H4: Medium | I4: 10 | J4: 25000 | K4: 250000 | L4: 1000000000 | M4: 1000000000 | N4: 2000000000 | O4: 25000000 | P4: 3000 | R4: Total private investment | S4: =U30 -> 6145245000 | T4: =S4 -> 6145245000 | U4: =T4 -> 6145245000
B5: Provincial | C5: 1464994000 | E5: Total direct jobs created | F5: 2500 | H5: Small | I5: 2.5018 | J5: 5000 | K5: 12509 | L5: 62545000 | M5: 62545000 | N5: 125090000 | O5: 1250900 | P5: 187.635 | R5: Total jobs created | S5: =P6+F5 -> 17687.635 | T5: =S5 -> 17687.635 | U5: =T5 -> 17687.635
B6: Private investment | C6: 1082700000 | H6: Total | K6: 4262509 | L6: 5062545000 | M6: 3062545000 | N6: 8125090000 | O6: 426250900 | P6: 15187.635 | R6: Annual public funding per job | S6: =((S2+S3)/S5)/20 -> 20524.39527 | T6: =((T2+T3)/T5)/20 -> 21016.82169 | U6: 21720.7579
R7: Rental and service rate (R/sqm) | S7: =U20/F3 -> 104.505623 | T7: =U34/F3 -> 98.66112087
R8: OPEX reduction by year 20 | U8: =U39/U18-1 -> 0.05923814804
B10: Actual | G10: Forecast
B11: 1 | C11: 2 | D11: 3 | E11: 4 | F11: 5 | G11: 6 | H11: 7 | I11: 8 | J11: 9 | K11: 10 | L11: 11 | M11: 12 | N11: 13 | O11: 14 | P11: 15 | Q11: 16 | R11: 17 | S11: 18 | T11: 19 | U11: 20 | V11: Total
A12: Staff costs | B12: 26574065 | C12: 32179050 | D12: 36895363 | E12: 43478919 | F12: 54467671 | G12: 60096377.31 | H12: 65725083.62 | I12: 71353789.93 | J12: 76982496.25 | K12: 82611202.56 | L12: 88239908.87 | M12: 93868615.18 | N12: 99497321.49 | O12: 105126027.8 | P12: 110754734.1 | Q12: 116383440.4 | R12: 122012146.7 | S12: 127640853.1 | T12: 133269559.4 | U12: 138898265.7 | V12: =SUM(B12:U12) -> 1686054890
A13: Travel and accommodation | B13: 3814762 | C13: 3537897 | D13: 3298949 | E13: 3265703 | F13: 4025644 | G13: 4441655.321 | H13: 4857666.643 | I13: 5273677.964 | J13: 5689689.286 | K13: 6105700.607 | L13: 6521711.929 | M13: 6937723.25 | N13: 7353734.572 | O13: 7769745.893 | P13: 8185757.215 | Q13: 8601768.536 | R13: 9017779.858 | S13: 9433791.179 | T13: 9849802.501 | U13: 10265813.82 | V13: =SUM(B13:U13) -> 128248973.6
A14: Marketing | B14: 4168707 | C14: 2595796 | D14: 5814404 | E14: 6193470 | F14: 6986267 | G14: 7708230.037 | H14: 8430193.073 | I14: 9152156.11 | J14: 9874119.147 | K14: 10596082.18 | L14: 11318045.22 | M14: 12040008.26 | N14: 12761971.29 | O14: 13483934.33 | P14: 14205897.37 | Q14: 14927860.4 | R14: 15649823.44 | S14: 16371786.48 | T14: 17093749.51 | U14: 17815712.55 | V14: 217188213.4
A15: Property rates | B15: 2422884 | C15: 2682483 | D15: 2298632 | E15: 7746650 | F15: 4046876 | G15: 4465081.443 | H15: 4883286.886 | I15: 5301492.329 | J15: 5719697.772 | K15: 6137903.215 | L15: 6556108.658 | M15: 6974314.101 | N15: 7392519.545 | O15: 7810724.988 | P15: 8228930.431 | Q15: 8647135.874 | R15: 9065341.317 | S15: 9483546.76 | T15: 9901752.203 | U15: 10319957.65 | V15: 130085318.2
A16: Professional fees | B16: 9626895 | C16: 8718299 | D16: 14148667 | E16: 9219522 | F16: 17289895 | G16: 19076638.21 | H16: 20863381.41 | I16: 22650124.62 | J16: 24436867.82 | K16: 26223611.03 | L16: 28010354.24 | M16: 29797097.44 | N16: 31583840.65 | O16: 33370583.86 | P16: 35157327.06 | Q16: 36944070.27 | R16: 38730813.47 | S16: 40517556.68 | T16: 42304299.89 | U16: 44091043.09 | V16: 532760887.7
A17: Other operating expenses | B17: 36954849 | C17: 41602978 | D17: 51542827 | E17: 64738908 | F17: 83415452 | G17: 92035631.14 | H17: 100655810.3 | I17: 109275989.4 | J17: 117896168.5 | K17: 126516347.7 | L17: 135136526.8 | M17: 143756706 | N17: 152376885.1 | O17: 160997064.2 | P17: 169617243.4 | Q17: 178237422.5 | R17: 186857601.6 | S17: 195477780.8 | T17: 204097959.9 | U17: 212718139 | V17: 2563908290
A18: Total | B18: 83562162 | C18: 91316503 | D18: 113998842 | E18: 134643172 | F18: 170231805 | G18: 187823613.5 | H18: 205415421.9 | I18: 223007230.4 | J18: 240599038.8 | K18: 258190847.3 | L18: 275782655.7 | M18: 293374464.2 | N18: 310966272.6 | O18: 328558081.1 | P18: 346149889.6 | Q18: 363741698 | R18: 381333506.5 | S18: 398925314.9 | T18: 416517123.4 | U18: 434108931.8 | V18: 5258246574
A20: Rental income | B20: 10461137 | C20: 13248021 | D20: 19625269 | E20: 32558921 | F20: 33573841 | G20: 61990567.67 | H20: 90407294.33 | I20: 118824021 | J20: 147240747.7 | K20: 175657474.3 | L20: 204074201 | M20: 232490927.7 | N20: 260907654.3 | O20: 289324381 | P20: 317741107.7 | Q20: 346157834.3 | R20: 374574561 | S20: 402991287.7 | T20: 431408014.3 | U20: 459824741 | V20: =SUM(B20:U20) -> 4023082004 | W20: =U20-F20 -> 426250900
A22: Operating profit | B22: -73101025 | C22: -78068482 | D22: -94373573 | E22: -102084251 | F22: -136657964 | G22: -125833045.8 | H22: -115008127.6 | I22: -104183209.4 | J22: -93358291.15 | K22: -82533372.94 | L22: -71708454.73 | M22: -60883536.52 | N22: -50058618.31 | O22: -39233700.1 | P22: -28408781.89 | Q22: -17583863.68 | R22: -6758945.464 | S22: 4065972.748 | T22: 14890890.96 | U22: 25715809.17 | V22: =SUM(B22:U22) -> -1235164570
A23: Operational shortfall | B23: =IF(B22<0,B22,0) -> -73101025 | C23: =IF(C22<0,C22,0) -> -78068482 | D23: -94373573 | E23: -102084251 | F23: -136657964 | G23: -125833045.8 | H23: -115008127.6 | I23: -104183209.4 | J23: -93358291.15 | K23: -82533372.94 | L23: -71708454.73 | M23: -60883536.52 | N23: -50058618.31 | O23: -39233700.1 | P23: -28408781.89 | Q23: -17583863.68 | R23: -6758945.464 | S23: 0 | T23: 0 | U23: 0 | V23: =SUM(B23:U23) -> -1279837243
A25: Total private investment | G25: 337503000 | H25: 337503000 | I25: 337503000 | J25: 337503000 | K25: 337503000 | L25: 337503000 | M25: 337503000 | N25: 337503000 | O25: 337503000 | P25: 337503000 | Q25: 337503000 | R25: 337503000 | S25: 337503000 | T25: 337503000 | U25: 337503000 | V25: =SUM(B25:U25) -> 5062545000
A26: IDZ investment | G26: 204169666.7 | H26: 204169666.7 | I26: 204169666.7 | J26: 204169666.7 | K26: 204169666.7 | L26: 204169666.7 | M26: 204169666.7 | N26: 204169666.7 | O26: 204169666.7 | P26: 204169666.7 | Q26: 204169666.7 | R26: 204169666.7 | S26: 204169666.7 | T26: 204169666.7 | U26: 204169666.7 | V26: 3062545000
F28: Actual | G28: Forecast
F29: 5 | G29: 6 | H29: 7 | I29: 8 | J29: 9 | K29: 10 | L29: 11 | M29: 12 | N29: 13 | O29: 14 | P29: 15 | Q29: 16 | R29: 17 | S29: 18 | T29: 19 | U29: 20
A30: Cumulative private investment | F30: =C6 -> 1082700000 | G30: =G25+F30 -> 1420203000 | H30: 1757706000 | I30: 2095209000 | J30: 2432712000 | K30: 2770215000 | L30: 3107718000 | M30: 3445221000 | N30: 3782724000 | O30: 4120227000 | P30: 4457730000 | Q30: 4795233000 | R30: 5132736000 | S30: 5470239000 | T30: 5807742000 | U30: 6145245000
A31: Cumulative IDZ CAPEX investment | F31: =C4 -> 1453184000 | G31: =G26+F31 -> 1657353667 | H31: 1861523333 | I31: 2065693000 | J31: 2269862667 | K31: 2474032333 | L31: 2678202000 | M31: 2882371667 | N31: 3086541333 | O31: 3290711000 | P31: 3494880667 | Q31: 3699050333 | R31: 3903220000 | S31: 4107389667 | T31: 4311559333 | U31: 4515729000
A33: Operational break even by increasing rental income
A34: Rental income | B34: =B20 -> 10461137 | C34: =C20 -> 13248021 | D34: 19625269 | E34: 32558921 | F34: 33573841 | G34: 58523730.27 | H34: 85351244.67 | I34: 112178759.1 | J34: 139006273.5 | K34: 165833787.9 | L34: 192661302.3 | M34: 219488816.7 | N34: 246316331 | O34: 273143845.4 | P34: 299971359.8 | Q34: 326798874.2 | R34: 353626388.6 | S34: 380453903 | T34: 407281417.4 | U34: 434108931.8 | V34: =SUM(B34:U34) -> 3804212155 | W34: =U34-F34 -> 400535090.8
A35: Operational profit | B35: =B34-B18 -> -73101025 | C35: -78068482 | D35: -94373573 | E35: -102084251 | F35: -136657964 | G35: -129299883.2 | H35: -120064177.2 | I35: -110828471.3 | J35: -101592765.4 | K35: -92357059.42 | L35: -83121353.48 | M35: -73885647.54 | N35: -64649941.59 | O35: -55414235.65 | P35: -46178529.71 | Q35: -36942823.77 | R35: -27707117.83 | S35: -18471411.88 | T35: -9235705.942 | U35: 0 | V35: =SUM(B35:U35) -> -1454034419
A36: Operational shortfall | B36: =IF(B35<0,B35,0) -> -73101025 | C36: =IF(C35<0,C35,0) -> -78068482 | D36: -94373573 | E36: -102084251 | F36: -136657964 | G36: -129299883.2 | H36: -120064177.2 | I36: -110828471.3 | J36: -101592765.4 | K36: -92357059.42 | L36: -83121353.48 | M36: -73885647.54 | N36: -64649941.59 | O36: -55414235.65 | P36: -46178529.71 | Q36: -36942823.77 | R36: -27707117.83 | S36: -18471411.88 | T36: -9235705.942 | U36: 0 | V36: =SUM(B36:U36) -> -1454034419
A38: Operational break even by reducing operating expenditure
A39: Operating expenditure | B39: =B18 -> 83562162 | C39: =C18 -> 91316503 | D39: 113998842 | E39: 134643172 | F39: 170231805 | G39: 224493028.6 | H39: 241302436.6 | I39: 258111844.6 | J39: 274921252.7 | K39: 291730660.7 | L39: 308540068.7 | M39: 325349476.7 | N39: 342158884.8 | O39: 358968292.8 | P39: 375777700.8 | Q39: 392587108.9 | R39: 409396516.9 | S39: 426205924.9 | T39: 443015333 | U39: 459824741 | V39: =SUM(B39:U39) -> 5726135756
A40: Operational profit | B40: =B20-B39 -> -73101025 | C40: -78068482 | D40: -94373573 | E40: -102084251 | F40: -136657964 | G40: -162502460.9 | H40: -150895142.3 | I40: -139287823.6 | J40: -127680505 | K40: -116073186.4 | L40: -104465867.7 | M40: -92858549.08 | N40: -81251230.45 | O40: -69643911.81 | P40: -58036593.18 | Q40: -46429274.54 | R40: -34821955.91 | S40: -23214637.27 | T40: -11607318.64 | U40: 0 | V40: =SUM(B40:U40) -> -1703053752
A41: Operational shortfall | B41: =IF(B40<0,B40,0) -> -73101025 | C41: -78068482 | D41: -94373573 | E41: -102084251 | F41: -136657964 | G41: -162502460.9 | H41: -150895142.3 | I41: -139287823.6 | J41: -127680505 | K41: -116073186.4 | L41: -104465867.7 | M41: -92858549.08 | N41: -81251230.45 | O41: -69643911.81 | P41: -58036593.18 | Q41: -46429274.54 | R41: -34821955.91 | S41: -23214637.27 | T41: -11607318.64 | U41: 0 | V41: =SUM(B41:U41) -> -1703053752

Sheet Richards Bay (hidden)
S1: Baseline | T1: Breakeven through rental | U1: Breakeven through opex
B2: Richards Bay | E2: Gross IDZ size | F2: 10010600 | H2: Actual number of tenants on IDZ | I2: Actual tenants | J2: Actual average size (sqm) | K2: Total area leased (sqm) | L2: Tenant investment | M2: IDZ investment | N2: Total investment | O2: Rental income | P2: Jobs created | R2: Total public CAPEX investment | S2: =U31 -> 1091123000 | T2: =S2 -> 1091123000 | U2: =T2 -> 1091123000
B3: Funding received to date | E3: Bulk infrastructure added | F3: 740000 | H3: Anchor | I3: 0 | J3: 500000 | K3: 0 | L3: 0 | M3: 0 | N3: 0 | O3: 0 | P3: 0 | R3: Total public Operational funding | S3: =-V23+C5 -> 886577909.3 | T3: =-V36+C5 -> 728262753 | U3: =-V41+C5 -> 728600360
B4: DTI | C4: 191123000 | E4: Total area leased | F4: 540000 | H4: Medium | I4: 4 | J4: 25000 | K4: 100000 | L4: 400000000 | M4: 400000000 | N4: 800000000 | O4: 10000000 | P4: 1200 | R4: Total private investment | S4: =U30 -> 1700000000 | T4: =S4 -> 1700000000 | U4: =T4 -> 1700000000
B5: Provincial | C5: 345979000 | E5: Total direct jobs created | F5: 180 | H5: Small | I5: 20 | J5: 5000 | K5: 100000 | L5: 500000000 | M5: 500000000 | N5: 1000000000 | O5: 10000000 | P5: 1500 | R5: Total jobs created | S5: =P6+F5 -> 2880 | T5: =S5 -> 2880 | U5: =T5 -> 2880
B6: Private investment | C6: 800000000 | H6: Total | K6: 200000 | L6: 900000000 | M6: 900000000 | N6: 1800000000 | O6: 20000000 | P6: 2700 | R6: Annual public funding per job | S6: =((S2+S3)/S5)/20 -> 34335.08523 | T6: =((T2+T3)/T5)/20 -> 31586.55821 | U6: 31592.41944
R7: Rental and service rate (R/sqm) | S7: =U20/F3 -> 27.02702703 | T7: =U34/F3 -> 53.76945208
R8: OPEX reduction by year 20 | U8: =U39/U18-1 -> -0.4973534975
B10: Actual | G10: Forecast
B11: 1 | C11: 2 | D11: 3 | E11: 4 | F11: 5 | G11: 6 | H11: 7 | I11: 8 | J11: 9 | K11: 10 | L11: 11 | M11: 12 | N11: 13 | O11: 14 | P11: 15 | Q11: 16 | R11: 17 | S11: 18 | T11: 19 | U11: 20 | V11: Total
A12: Staff costs | B12: 3815643 | C12: 4768149 | D12: 12659122 | E12: 19163358 | F12: 19921643 | G12: 19946237.62 | H12: 19970832.24 | I12: 19995426.86 | J12: 20020021.48 | K12: 20044616.1 | L12: 20069210.73 | M12: 20093805.35 | N12: 20118399.97 | O12: 20142994.59 | P12: 20167589.21 | Q12: 20192183.83 | R12: 20216778.45 | S12: 20241373.07 | T12: 20265967.69 | U12: 20290562.31 | V12: =SUM(B12:U12) -> 362103914.5
A13: Travel and accommodation | B13: 193918 | C13: 0 | D13: 815689 | E13: 1658532 | F13: 1681281 | G13: 1683356.656 | H13: 1685432.311 | I13: 1687507.967 | J13: 1689583.622 | K13: 1691659.278 | L13: 1693734.933 | M13: 1695810.589 | N13: 1697886.244 | O13: 1699961.9 | P13: 1702037.556 | Q13: 1704113.211 | R13: 1706188.867 | S13: 1708264.522 | T13: 1710340.178 | U13: 1712415.833 | V13: 29817713.67
A14: Marketing | B14: 176213 | C14: 565794 | D14: 346550 | E14: 767775 | F14: 1112064 | G14: 1113436.919 | H14: 1114809.837 | I14: 1116182.756 | J14: 1117555.674 | K14: 1118928.593 | L14: 1120301.511 | M14: 1121674.43 | N14: 1123047.348 | O14: 1124420.267 | P14: 1125793.185 | Q14: 1127166.104 | R14: 1128539.022 | S14: 1129911.941 | T14: 1131284.859 | U14: 1132657.778 | V14: 19814106.22
A15: Property rates | B15: 0 | C15: 724442 | D15: 1357632 | E15: 1529683 | F15: 1732316 | G15: 1734454.662 | H15: 1736593.323 | I15: 1738731.985 | J15: 1740870.647 | K15: 1743009.309 | L15: 1745147.97 | M15: 1747286.632 | N15: 1749425.294 | O15: 1751563.956 | P15: 1753702.617 | Q15: 1755841.279 | R15: 1757979.941 | S15: 1760118.602 | T15: 1762257.264 | U15: 1764395.926 | V15: 31585452.41
A16: Professional fees | B16: 437358 | C16: 2626267 | D16: 2003286 | E16: 1052396 | F16: 8294716 | G16: 8304956.39 | H16: 8315196.78 | I16: 8325437.17 | J16: 8335677.56 | K16: 8345917.951 | L16: 8356158.341 | M16: 8366398.731 | N16: 8376639.121 | O16: 8386879.511 | P16: 8397119.901 | Q16: 8407360.291 | R16: 8417600.681 | S16: 8427841.072 | T16: 8438081.462 | U16: 8448321.852 | V16: 140063609.8
A17: Other operating expenses | B17: 3636834 | C17: 1447904 | D17: 4097558 | E17: 5912042 | F17: 6323931 | G17: 6331738.322 | H17: 6339545.644 | I17: 6347352.967 | J17: 6355160.289 | K17: 6362967.611 | L17: 6370774.933 | M17: 6378582.256 | N17: 6386389.578 | O17: 6394196.9 | P17: 6402004.222 | Q17: 6409811.544 | R17: 6417618.867 | S17: 6425426.189 | T17: 6433233.511 | U17: 6441040.833 | V17: 117214112.7
A18: Total | B18: 8259966 | C18: 10132556 | D18: 21279837 | E18: 30083786 | F18: 39065951 | G18: 39114180.57 | H18: 39162410.14 | I18: 39210639.71 | J18: 39258869.28 | K18: 39307098.85 | L18: 39355328.41 | M18: 39403557.98 | N18: 39451787.55 | O18: 39500017.12 | P18: 39548246.69 | Q18: 39596476.26 | R18: 39644705.83 | S18: 39692935.4 | T18: 39741164.97 | U18: 39789394.54 | V18: 700598909.3
A20: Rental income | B20: 0 | C20: 0 | D20: 0 | E20: 0 | F20: 0 | G20: 1333333.333 | H20: 2666666.667 | I20: 4000000 | J20: 5333333.333 | K20: 6666666.667 | L20: 8000000 | M20: 9333333.333 | N20: 10666666.67 | O20: 12000000 | P20: 13333333.33 | Q20: 14666666.67 | R20: 16000000 | S20: 17333333.33 | T20: 18666666.67 | U20: 20000000 | V20: =SUM(B20:U20) -> 160000000 | W20: =U20-F20 -> 20000000
A22: Operating profit | B22: -8259966 | C22: -10132556 | D22: -21279837 | E22: -30083786 | F22: -39065951 | G22: -37780847.24 | H22: -36495743.47 | I22: -35210639.71 | J22: -33925535.94 | K22: -32640432.18 | L22: -31355328.41 | M22: -30070224.65 | N22: -28785120.89 | O22: -27500017.12 | P22: -26214913.36 | Q22: -24929809.59 | R22: -23644705.83 | S22: -22359602.07 | T22: -21074498.3 | U22: -19789394.54 | V22: =SUM(B22:U22) -> -540598909.3
A23: Operational shortfall | B23: =IF(B22<0,B22,0) -> -8259966 | C23: =IF(C22<0,C22,0) -> -10132556 | D23: -21279837 | E23: -30083786 | F23: -39065951 | G23: -37780847.24 | H23: -36495743.47 | I23: -35210639.71 | J23: -33925535.94 | K23: -32640432.18 | L23: -31355328.41 | M23: -30070224.65 | N23: -28785120.89 | O23: -27500017.12 | P23: -26214913.36 | Q23: -24929809.59 | R23: -23644705.83 | S23: -22359602.07 | T23: -21074498.3 | U23: -19789394.54 | V23: =SUM(B23:U23) -> -540598909.3
A25: Total private investment | G25: 60000000 | H25: 60000000 | I25: 60000000 | J25: 60000000 | K25: 60000000 | L25: 60000000 | M25: 60000000 | N25: 60000000 | O25: 60000000 | P25: 60000000 | Q25: 60000000 | R25: 60000000 | S25: 60000000 | T25: 60000000 | U25: 60000000 | V25: =SUM(B25:U25) -> 900000000
A26: IDZ investment | G26: 60000000 | H26: 60000000 | I26: 60000000 | J26: 60000000 | K26: 60000000 | L26: 60000000 | M26: 60000000 | N26: 60000000 | O26: 60000000 | P26: 60000000 | Q26: 60000000 | R26: 60000000 | S26: 60000000 | T26: 60000000 | U26: 60000000 | V26: 900000000
F28: Actual | G28: Forecast
F29: 5 | G29: 6 | H29: 7 | I29: 8 | J29: 9 | K29: 10 | L29: 11 | M29: 12 | N29: 13 | O29: 14 | P29: 15 | Q29: 16 | R29: 17 | S29: 18 | T29: 19 | U29: 20
A30: Cumulative private investment | F30: =C6 -> 800000000 | G30: =G25+F30 -> 860000000 | H30: 920000000 | I30: 980000000 | J30: 1040000000 | K30: 1100000000 | L30: 1160000000 | M30: 1220000000 | N30: 1280000000 | O30: 1340000000 | P30: 1400000000 | Q30: 1460000000 | R30: 1520000000 | S30: 1580000000 | T30: 1640000000 | U30: 1700000000
A31: Cumulative IDZ CAPEX investment | F31: =C4 -> 191123000 | G31: =G26+F31 -> 251123000 | H31: 311123000 | I31: 371123000 | J31: 431123000 | K31: 491123000 | L31: 551123000 | M31: 611123000 | N31: 671123000 | O31: 731123000 | P31: 791123000 | Q31: 851123000 | R31: 911123000 | S31: 971123000 | T31: 1031123000 | U31: 1091123000
A33: Operational break even by increasing rental income
A34: Rental income | B34: =B20 -> 0 | C34: =C20 -> 0 | D34: 0 | E34: 0 | F34: 0 | G34: 2652626.302 | H34: 5305252.605 | I34: 7957878.907 | J34: 10610505.21 | K34: 13263131.51 | L34: 15915757.81 | M34: 18568384.12 | N34: 21221010.42 | O34: 23873636.72 | P34: 26526263.02 | Q34: 29178889.33 | R34: 31831515.63 | S34: 34484141.93 | T34: 37136768.23 | U34: 39789394.54 | V34: =SUM(B34:U34) -> 318315156.3 | W34: =U34-F34 -> 39789394.54
A35: Operational profit | B35: =B34-B18 -> -8259966 | C35: =C34-C18 -> -10132556 | D35: -21279837 | E35: -30083786 | F35: -39065951 | G35: -36461554.27 | H35: -33857157.53 | I35: -31252760.8 | J35: -28648364.07 | K35: -26043967.33 | L35: -23439570.6 | M35: -20835173.87 | N35: -18230777.13 | O35: -15626380.4 | P35: -13021983.67 | Q35: -10417586.93 | R35: -7813190.2 | S35: -5208793.467 | T35: -2604396.733 | U35: 0 | V35: =SUM(B35:U35) -> -382283753
A36: Operational shortfall | B36: =IF(B35<0,B35,0) -> -8259966 | C36: =IF(C35<0,C35,0) -> -10132556 | D36: -21279837 | E36: -30083786 | F36: -39065951 | G36: -36461554.27 | H36: -33857157.53 | I36: -31252760.8 | J36: -28648364.07 | K36: -26043967.33 | L36: -23439570.6 | M36: -20835173.87 | N36: -18230777.13 | O36: -15626380.4 | P36: -13021983.67 | Q36: -10417586.93 | R36: -7813190.2 | S36: -5208793.467 | T36: -2604396.733 | U36: 0 | V36: =SUM(B36:U36) -> -382283753
A38: Operational break even by reducing operating expenditure
A39: Operating expenditure | B39: =B18 -> 8259966 | C39: =C18 -> 10132556 | D39: 21279837 | E39: 30083786 | F39: 39065951 | G39: 37839901.86 | H39: 36565623.16 | I39: 35291344.46 | J39: 34017065.75 | K39: 32742787.05 | L39: 31468508.34 | M39: 30194229.64 | N39: 28919950.93 | O39: 27645672.23 | P39: 26371393.52 | Q39: 25097114.82 | R39: 23822836.11 | S39: 22548557.41 | T39: 21274278.7 | U39: 20000000 | V39: =SUM(B39:U39) -> 542621360
A40: Operational profit | B40: =B20-B39 -> -8259966 | C40: =C20-C39 -> -10132556 | D40: -21279837 | E40: -30083786 | F40: -39065951 | G40: -36506568.53 | H40: -33898956.49 | I40: -31291344.46 | J40: -28683732.42 | K40: -26076120.38 | L40: -23468508.34 | M40: -20860896.3 | N40: -18253284.27 | O40: -15645672.23 | P40: -13038060.19 | Q40: -10430448.15 | R40: -7822836.114 | S40: -5215224.076 | T40: -2607612.038 | U40: 0 | V40: =SUM(B40:U40) -> -382621360
A41: Operational shortfall | B41: =IF(B40<0,B40,0) -> -8259966 | C41: -10132556 | D41: -21279837 | E41: -30083786 | F41: -39065951 | G41: -36506568.53 | H41: -33898956.49 | I41: -31291344.46 | J41: -28683732.42 | K41: -26076120.38 | L41: -23468508.34 | M41: -20860896.3 | N41: -18253284.27 | O41: -15645672.23 | P41: -13038060.19 | Q41: -10430448.15 | R41: -7822836.114 | S41: -5215224.076 | T41: -2607612.038 | U41: 0 | V41: =SUM(B41:U41) -> -382621360
